Directorate,Service Category,Supplier Name,Payment Date,Transaction Number,Net Amount,Purpose_of_the_expenditure,Merchant Category
People and Places,Environmental Services,A & C Weber UK LTD,15/02/2023,PE147360,9000.00,360ltr Grey Bin Lids @ 9.00 per unit,"Provision of Bins, Boxes and Sacks"
People and Places,Environmental Services,A & C Weber UK LTD,15/02/2023,PE147360,100.00,"Delivery  Prices as per ESPO Contract Schedule 860ADD  Anticipated delivery ASAP  (can accept delivery any time, but please advise in advance if possible)   e-mail address: sales@w-weber.com & d.elliott@w-weber.com  & t.anklam@w-weber.com     To be delive","Provision of Bins, Boxes and Sacks"
People and Places,Cultural and Related Services,Absolute Futbol Ltd,03/02/2023,PE147044,3520.00,"ABSOLUTE FUTBOL - OVER WYREPLACES50 places per day x 4 days =200 21.00 per day x 50 x 4 =  4,200.00 FOOD50 places x 4 days = 1100TOTAL = 5300(all costs included in 21 per head- marketing, Staff, Equipment, Resources )",External Coaching
People and Places,Cultural and Related Services,Absolute Futbol Ltd,03/02/2023,PE147044,4200.00,"ABSOLUTE FUTBOL - Stannah SchoolPLACES40 places per day x 4 days =160 21.00 per day x 40  x 4  =  3,360.00 FOOD40 places x 4 days =  880 TOTAL = 4240(all costs included in 21 per head- marketing, Staff, Equipment, Resources )",External Coaching
People and Places,Cultural and Related Services,Absolute Futbol Ltd,09/02/2023,PE147246,-3520.00,crediting PE147044 OverWyre Places,External Coaching
People and Places,Cultural and Related Services,Absolute Futbol Ltd,09/02/2023,PE147246,-4200.00,crediting PE147044 Stannah School places,External Coaching
People and Places,Cultural and Related Services,Absolute Futbol Ltd,09/02/2023,PE147247,3520.00,"ABSOLUTE FUTBOL - OVER WYRE PLACES 50per day x 4 days = 200 21 per day x 50 x 4=4200. FOOD 50 places x 4 days = 1100 TOTAL=5300 (all costs included in 21 per head - marketing, staff, equipment, resources",External Coaching
People and Places,Cultural and Related Services,Absolute Futbol Ltd,09/02/2023,PE147247,4200.00,"ABSOLUTE FUTBOL - Stannah School PLACES40 per day x 4 days = 160 21 per day x 40 x 4=3360 FOOD 40 places x 4 days=880 TOTAL4240 (all costs included in 21 per head - marketing, staff equipment, resources",External Coaching
People and Places,Planning and Development Servs,AFFORDABILITY RESEARCH COMMUNITIES (ARC 4),03/02/2023,PE147060,3865.57,"Fylde Coast Gypsy, Traveller and Travelling Showpeople Study",Consultants Fees
People and Places,Support Services,Allstar Business Solutions LTD,07/02/2023,PE147012,69.78,Fuel 16 & 27/01/23,Petrol
People and Places,Support Services,Allstar Business Solutions LTD,24/02/2023,PE147471,28.66,Fuel Charges for February 2023,Petrol
People and Places,Support Services,Allstar Business Solutions LTD,07/02/2023,PE147012,51.06,Fuel 16/01/23,Petrol
People and Places,Support Services,Allstar Business Solutions LTD,24/02/2023,PE147471,47.89,Fuel Charges for February 2023,Petrol
People and Places,Cultural and Related Services,Allstar Business Solutions LTD,07/02/2023,PE147012,100.30,Fuel 23/01/23,Petrol
People and Places,Support Services,Allstar Business Solutions LTD,24/02/2023,PE147471,72.71,Fuel Charges for February 2023,Petrol
People and Places,Support Services,Allstar Business Solutions LTD,07/02/2023,PE147012,41.64,Fuel  17/01/23,Petrol
People and Places,Support Services,Allstar Business Solutions LTD,24/02/2023,PE147471,66.95,Fuel Charges for February 2023,Petrol
People and Places,Support Services,Allstar Business Solutions LTD,24/02/2023,PE147471,50.20,Fuel Charges for February 2023,Petrol
People and Places,Environmental Services,ALLTITE METAL ROOFING SYSTEMS LTD,20/02/2023,PE147504,17611.00,"Please remove existing & replace roofline metalwork and RWP?s with TATA Steel HPS 200 Ultra as per your quotation - 27,739.00 + VAT",Responsive Building Maintenance
People and Places,Support Services,Amazon Business,08/02/2023,PE147214,55.99,Nortiv boots,Protective Clothing
People and Places,Support Services,Amazon Business,27/02/2023,PE147593,26.25,HeaterFAO Sammy GrayAuthorised by Kath Winstanley,Materials and Consumables
People and Places,Support Services,Amazon Business,17/02/2023,PE147306,84.00,cable hook up,Materials and Consumables
People and Places,Support Services,Amazon Business,15/02/2023,PE147091,14.15,Repair tape Memorial Park Poly Tunnel,Materials and Consumables
Resources,Support Services,Amazon Business,16/02/2023,RS147204,46.64,"4 Pack USB Plug UK Mains Charger, Rekavin USB Wall Plug Adaptor UK Compact Power USB Adapter Socket Charge Head 5V/1AMP Multipack Single Port Charging for iPhone 11/10/Xs/XS Max/XR/X/8/7/6 Plus/5/4.",Comp Hardware Purchases
Resources,Support Services,Amazon Business,16/02/2023,RS147217,227.40,"Logitech H390 Wired Headset for PC/Laptop, Stereo Headphones with Noise Cancelling Microphone, USB-A, In-Line Controls, Works with Chromebook - Black",Comp Hardware Purchases
Resources,Support Services,Amazon Business,16/02/2023,RS147216,227.40,"Logitech H390 Wired Headset for PC/Laptop, Stereo Headphones with Noise Cancelling Microphone, USB-A, In-Line Controls, Works with Chromebook - Black",Comp Hardware Purchases
Resources,Support Services,Amazon Business,16/02/2023,RS147229,98.07,"Logitech iPad (7th, 8th and 9th Generation) Keyboard Case | Slim Folio with Integrated Wireless Keyboard (Graphite).",Comp Hardware Purchases
Resources,Support Services,Amazon Business,16/02/2023,RS147389,125.80,"Extension Leads 6 Way, 3M Extension Leads with 5 USB Slots(5V 3.4A), Multi Socket Surge Protection Power Strip, Wall Mountable Extension Cord for Desk Room Office Home.",Comp Hardware Purchases
Resources,Support Services,Amazon Business,16/02/2023,RS147386,175.10,"VonHaus 6 Way Plug Extension with USB - 6 Gang 2m Universal Power Strip with LED Indicator, Power Strip Surge Protected - Extension Lead USB, Ideal for Gaming, Home Office & Garage.",Comp Hardware Purchases
Resources,Support Services,Amazon Business,16/02/2023,RS147289,10.91,"Brother TZe-231 Labelling Tape Cassette, 12 mm (W) x 8 m (L), Laminated, Brother Genuine Supplies - Black on White.",Computer Stationery and Consumables
Resources,Support Services,Amazon Business,16/02/2023,RS147219,10.62,Westcott Professional Safety Cutter Knife,Purchase of Tools or Equipment
Resources,Support Services,Amazon Business,16/02/2023,RS147218,19.98,"Heavy Duty, Tape Dispenser - Weighted, Non-Skid Rubber Base - High-Quality, Sharp Cutting Blade - Black, Desktop Adhesive Distributor - Uniform Cutting - One Hand Dispensing",Purchase of Tools or Equipment
Resources,Support Services,Amazon Business,16/02/2023,RS147218,9.99,"flintronic Power Meter Plug, Energy Monitor Socket with Backlight LCD Display, 7 Monitoring Modes Electricity Usage Consumption Analyzer Voltage Amps Wattage KWH,3680W/16A Overload Protection, UK Plug.",Purchase of Tools or Equipment
Resources,Support Services,Amazon Business,16/02/2023,RS147205,9.68,"Haus Projekt Black 150x12mm 100pcs Self Gripping Premium Reusable Cable Ties, Multi-Purpose Pre-Cut Adjustable Straps for Cable Management, Indoor and Outdoor, Wires, Home, Office, Classroom, Garden.",Purchase of Tools or Equipment
People and Places,Support Services,Amazon Business,24/02/2023,PE147536,12.64,Metal fasteners Care & Repair,Stationery
People and Places,Environmental Services,ANV Measurement Systems,27/02/2023,PE147607,350.00,UKAS Broadband Calibration of RION NL52 sound level meter - serial number 00453839.  Calibration Option 4 - used with extension cable and wind shield WS-10.,Maintenance of Tools or Equipment
People and Places,Environmental Services,ANV Measurement Systems,27/02/2023,PE147607,38.00,Collection and Return Carriage,Maintenance of Tools or Equipment
People and Places,Environmental Services,ANV Measurement Systems,27/02/2023,PE147607,495.00,New NNR Control Handset,Maintenance of Tools or Equipment
People and Places,Environmental Services,ANV Measurement Systems,27/02/2023,PE147607,15.00,New battery 12V 1.2A,Maintenance of Tools or Equipment
People and Places,Environmental Services,ANV Measurement Systems,27/02/2023,PE147607,50.00,New NNR main PCB,Maintenance of Tools or Equipment
People and Places,Environmental Services,ANV Measurement Systems,27/02/2023,PE147607,20.00,Rion TCX3166ASSY serial cable,Maintenance of Tools or Equipment
People and Places,Environmental Services,ANV Measurement Systems,27/02/2023,PE147607,10.00,New Power cable,Maintenance of Tools or Equipment
People and Places,Planning and Development Servs,AQUASPRAY LTD,03/02/2023,PE147037,2222.50,Karcher hot pressure washer,Purchase of Tools or Equipment
People and Places,Planning and Development Servs,Arcadis Consulting (UK) LTD,08/02/2023,PE147170,2934.75,Environmental Assessment for the Local Plan Partial Review,Consultants Fees
People and Places,Cultural and Related Services,Arranpaul Audio LTD,15/02/2023,PE147370,120.00,LEDJ 10M Combi Powercon & XLR 3 Pin,Purchase of Tools or Equipment
People and Places,Cultural and Related Services,Arranpaul Audio LTD,15/02/2023,PE147370,2640.00,8 Equinox Fusion 260ZR,Purchase of Tools or Equipment
People and Places,Cultural and Related Services,Arranpaul Audio LTD,15/02/2023,PE147370,48.00,Equinox 50mm clamp black,Purchase of Tools or Equipment
People and Places,Cultural and Related Services,Arranpaul Audio LTD,15/02/2023,PE147370,200.00,LEDJ 3M Combi Powercon & XLR 3 Pin,Purchase of Tools or Equipment
People and Places,Cultural and Related Services,Arranpaul Audio LTD,15/02/2023,PE147370,56.00,LEDJ 2M 2.5mm T Connect Powercon,Purchase of Tools or Equipment
People and Places,Cultural and Related Services,Arranpaul Audio LTD,15/02/2023,PE147370,50.00,Delivery,Purchase of Tools or Equipment
People and Places,Support Services,Balmers GM LTD,22/02/2023,PE147534,4995.00,FAO Steve Pulman  To SupplyOne new Fleming 9ft trailed land roller fitted with hydraulic transport kitCost 4995 + Vat Delivery Address:-Wyre CouncilCopse Road Depot FleetwoodLancashireFY7 6RP,Purchase of Tools or Equipment
People and Places,Support Services,Balmers GM LTD,15/02/2023,PE146998,4075.00,purchase and delivery of 5  husqvarna klippo lawn mowers,Purchase of Tools or Equipment
Resources,Housing General Fund,Bates Office Services Ltd,07/02/2023,RS147152,1209.00,"7 number TSKZA Task Chair, Black with arms, slidable seat and lumbar support201.50 each as agreed with Kelly Griffin.  Delivery 3 - 6 weeks",Purchase of Tools or Equipment
Resources,Support Services,Bates Office Services Ltd,22/02/2023,RS147528,65.48,Q CONNECT COMB BNDR CVR 150MIC A4 PK250,Stationery
Resources,Support Services,Bates Office Services Ltd,07/02/2023,RS145825,0.49,BLICK COMPANY SEAL 50MM RED PK160,Stationery
Resources,Support Services,Bates Office Services Ltd,07/02/2023,RS145825,4.38,Q-CONNECT SPIRAL PAD EXEC A4 80SHT,Stationery
Resources,Support Services,Bates Office Services Ltd,07/02/2023,RS145825,8.41,Q CONNECT REFILL PADS A4 F/M 80 LEAF,Stationery
Resources,Support Services,Bates Office Services Ltd,07/02/2023,RS145825,8.03,POST-IT SS NOTES MIAMI 76 X 76MM,Stationery
People and Places,Support Services,Bates Office Services Ltd,07/02/2023,PE147005,15.18,INITIATIVE LAMG POUCH A4 150 MIC PK100,Stationery
People and Places,Support Services,Bates Office Services Ltd,07/02/2023,PE147005,22.20,INITIATIVE LAMG POUCH A3 150 MICRON P100,Stationery
People and Places,Support Services,Bates Office Services Ltd,07/02/2023,PE147005,9.02,NOBO 1.5MM BLACK GRIDDING TAPE,Stationery
People and Places,Support Services,Bates Office Services Ltd,07/02/2023,PE147005,2.76,WB HIGHLIGHTER PINK,Stationery
People and Places,Support Services,Bates Office Services Ltd,07/02/2023,PE147005,2.76,WB HIGHLIGHTER GREEN,Stationery
People and Places,Support Services,Bates Office Services Ltd,07/02/2023,PE147005,1.40,Q CONNECT QUICKNOTE 75X125MM YLW,Stationery
People and Places,Support Services,Bates Office Services Ltd,07/02/2023,PE147005,2.27,Q-CONNECT A5 SPIRAL EXEC PAD 80LF RULED,Stationery
People and Places,Support Services,Bates Office Services Ltd,07/02/2023,PE147005,11.84,ELBA A4 JAN-DEC PRESS BOARD DIVIDER,Stationery
People and Places,Support Services,Bates Office Services Ltd,07/02/2023,PE147005,31.16,KENSINGTON SOLEMATE TILT/ADJ FOOTREST,Stationery
People and Places,Support Services,Bates Office Services Ltd,07/02/2023,PE147005,3.69,INITIATIVE DOCUMENT WALLETS FC AST PK50,Stationery
People and Places,Support Services,Bates Office Services Ltd,07/02/2023,PE147005,2.26,Q-CONNECT METAL TREASURY TAG 102MM PK100,Stationery
People and Places,Support Services,Bates Office Services Ltd,07/02/2023,PE147005,1.32,INITIATIVE DIVIDER A4 MANILLA A-Z BUFF,Stationery
People and Places,Support Services,Bates Office Services Ltd,07/02/2023,PE147005,8.44,Initiative Env C5 SSeal 90g Wh Wdw 500s,Stationery
People and Places,Support Services,Bates Office Services Ltd,07/02/2023,PE147005,5.97,Q CONNECT LETTERTRAY BLK,Stationery
People and Places,Cultural and Related Services,Bates Office Services Ltd,24/02/2023,PE147589,136.00,SECOND CLASS POSTAGE STAMPS BOOK OF 100,Stationery
People and Places,Cultural and Related Services,Bates Office Services Ltd,24/02/2023,PE147589,17.41,Initiative Lever Arch File A4 Black Metal Shoe and Thumbring PK10,Stationery
People and Places,Planning and Development Servs,Bates Office Services Ltd,15/02/2023,PE147372,61.99, for Quote SQ560953 -supply and delivery 15 x  clip frame A2 size  +1 sellotape dispenser .,Monitoring/Evaluation
People and Places,Support Services,Bates Office Services Ltd,20/02/2023,PE147503,5.57,QCONNECT PREM W/BOARD MKR B/TIP ASST PK4,Stationery
People and Places,Support Services,Bates Office Services Ltd,08/02/2023,PE146802,55.90,Offset via PE146918 Councout Ergon adjustable lumbar support,Stationery
People and Places,Support Services,Bates Office Services Ltd,01/02/2023,PE146970,31.16,KENSINGTON SOLEMATE TILT/ADJ FOOTREST,Stationery
People and Places,Support Services,Bates Office Services Ltd,01/02/2023,PE147006,27.66,STEEL MAGNETIC WHITEBOARDS 900X600,Stationery
People and Places,Support Services,Bates Office Services Ltd,01/02/2023,PE147006,4.53,PUKKA JOTTA METALLIC A4 WRIT PAD 80G,Stationery
People and Places,Support Services,Bates Office Services Ltd,01/02/2023,PE147006,5.57,QCONNECT PREM W/BOARD MKR B/TIP ASST PK4,Stationery
Resources,Corporate and Democratic Core,Bates Office Services Ltd,20/02/2023,RS147502,26.69,Q CONNECT ENV S/S C6 90G WHITE PK1000,Stationery
Resources,Central Services to the Public,Bates Office Services Ltd,20/02/2023,RS147502,14.20,INITIATIVE DL WHT WDW 80GSM S/S PK1000 08771,Stationery
Resources,Support Services,Bates Office Services Ltd,07/02/2023,RS145825,46.20,GUILDHALL HVY WGHT PCKT SPIRAL FILE BLUE,Stationery
Resources,Support Services,Bates Office Services Ltd,07/02/2023,RS145825,12.28,Offset via RS146759 BLICK COMPANY SEAL 50MM RED PK160,Stationery
Resources,Environmental Services,Bates Office Services Ltd,07/02/2023,RS147152,201.50,"7 number TSKZA Task Chair, Black with arms, slidable seat and lumbar support201.50 each as agreed with Kelly Griffin.  Delivery 3 - 6 weeks",Purchase of Tools or Equipment
People and Places,Support Services,Blackpool Council,10/02/2023,PE146591,1620.00,Wyre Advertorial Features in Destination/Tourism Guides,Public Relations
People and Places,Environmental Services,Blackpool Council,13/02/2023,PE147243,3455.25,Bulky Matters Service Recharge 2022/23,Refuse Collection Contract
People and Places,Environmental Services,Blackpool Council,13/02/2023,PE147244,2881.08,Bulky Matters Service Recharge 2022/23,Refuse Collection Contract
People and Places,Environmental Services,Blackpool Council,13/02/2023,PE147242,1477.43,Bulky Matters Service Recharge 2022/23,Refuse Collection Contract
People and Places,Environmental Services,Blackpool Council,13/02/2023,PE147242,650.39,Bulky Matters Service Recharge 2022/23 vehicle insurance,Refuse Collection Contract
Resources,Central Services to the Public,Blackpool Council,01/02/2023,RS146951,548.00,"Mobile Vaccinations, Jan 23 - 1036175",Contain Outbreak Management Fund
Resources,Housing General Fund,Blackpool Electrical Traders LTD,10/02/2023,RS147291,1842.90,30x 2KW Oil Filled Radiators,Affordable Warmth 2017/18
People and Places,Environmental Services,BREEDON SOUTHERN LTD,23/02/2023,PE147239,23.76,Time on site to deliver concrete,Materials and Consumables
People and Places,Environmental Services,BREEDON SOUTHERN LTD,15/02/2023,PE147045,4726.00,concrete january 2023,Materials and Consumables
People and Places,Environmental Services,Bucher Municipal Limited,28/02/2023,PE147595,233.66,3  sweeper brushes - October 2022,Daywork Materials (Excl.Tyres)
People and Places,Environmental Services,Bucher Municipal Limited,28/02/2023,PE147595,233.66,3  sweeper brushes - October 2022,Daywork Materials (Excl.Tyres)
People and Places,Environmental Services,Bucher Municipal Limited,28/02/2023,PE147595,233.66,3  sweeper brushes - October 2022,Daywork Materials (Excl.Tyres)
Resources,Support Services,Butler Rose Recuitment Ltd,03/02/2023,RS147038,1965.05,Interim Accountant Support - KR7th November 2022 - 30th January 2023,Agency Staff
Resources,Support Services,Butler Rose Recuitment Ltd,09/02/2023,RS147236,1965.05,Interim Accountant Support - KR7th November 2022 - 30th January 2023,Agency Staff
People and Places,Cultural and Related Services,Carlsberg UK LTD,01/02/2023,PE147003,106.40,CO2 & Mixed gas invoice date 26/1/23,Drinks
People and Places,Cultural and Related Services,Carlsberg UK LTD,01/02/2023,PE147002,322.86,Marine Hall Bar,Drinks
People and Places,Cultural and Related Services,Carlsberg UK LTD,28/02/2023,PE147619,106.40,Co2 & Mixed Gas,Drinks
People and Places,Cultural and Related Services,Catering Elite Ltd,03/02/2023,PE147049,242.38,Marine Hall agency staff we 1/1/23,Agency Staff
People and Places,Cultural and Related Services,Catering Elite Ltd,03/02/2023,PE147048,326.48,Marine Hall agency staff we 22/1/23,Agency Staff
People and Places,Cultural and Related Services,Catering Elite Ltd,03/02/2023,PE147047,103.88,Marine Hall agency staff we 29/1/23,Agency Staff
People and Places,Cultural and Related Services,Catering Elite Ltd,03/02/2023,PE147050,59.36,Agency staff Marine Hall we 25/12/22,Agency Staff
Resources,Support Services,Civica UK LTD,17/02/2023,RS147421,13884.61,"Civica Xpress: Annual Licence, Support and Maintenance Schedule 2023-2024",Software Maintenance
Resources,Support Services,Civica UK LTD,20/02/2023,RS147505,315.00,Year end training - Michelle Black,Training - Non HR Controlled
People and Places,Cultural and Related Services,Clive Carruthers,10/02/2023,PE147253,-4059.00,credit note to correct cis deductions made in error,Responsive Building Maintenance
People and Places,Cultural and Related Services,Clive Carruthers,10/02/2023,PE147065,-4059.00,"New invoice to show no CIS deductios To carry out architectural consultant works in relation to the King George?s Pavilion Re-build following fire to include 1.1915 Landscaping, survey  (to include site survey, levels drawing to affected area, landscapi",Responsive Building Maintenance
Resources,Support Services,Coolspirit LTD,20/02/2023,RS147506,830.70,COMCLOUD-WAN-SINGLECOOLSPIRiT Dedicated WAN Breakout - Mbps - MonthlyStart Date: 01-Aug-2022 End Date: 31-Jul-2023,Software Maintenance
Resources,Support Services,Coolspirit LTD,20/02/2023,RS147506,175.50,COMCOMPUTE-BASEVMCOOLSPIRiT Cloud Compute - Base VM Resource - MonthlyStart Date: 01-Aug-2022 End Date: 31-Jul-2023,Software Maintenance
Resources,Support Services,Coolspirit LTD,07/02/2023,RS147063,10.00,August.COMCH-HOST-STOR-D-1 - COOLSPIRiT CX Compute Single Site Dense Storage (SATA),Software Maintenance
Resources,Support Services,Coolspirit LTD,07/02/2023,RS147063,10.00,September.COMCH-HOST-STOR-D-1 - COOLSPIRiT CX Compute Single Site Dense Storage (SATA),Software Maintenance
Resources,Support Services,Coolspirit LTD,07/02/2023,RS147063,15.00,October.COMCH-HOST-STOR-D-1 - COOLSPIRiT CX Compute Single Site Dense Storage (SATA),Software Maintenance
Resources,Support Services,Coolspirit LTD,07/02/2023,RS147063,5.94,October.COMCH-HOST-STOR-F-50 - COOLSPIRiT CX Fast Storage (SAS/SSD),Software Maintenance
Resources,Support Services,Coolspirit LTD,07/02/2023,RS147063,20.00,November.COOLSPIRiT CX Fast Storage (SAS/SSD) - COOLSPIRiT CX Compute Single Site Dense Storage (SATA),Software Maintenance
Resources,Support Services,Coolspirit LTD,07/02/2023,RS147063,5.94,November.COMCH-HOST-STOR-F-50 - COOLSPIRiT CX Fast Storage (SAS/SSD),Software Maintenance
Resources,Support Services,Coolspirit LTD,07/02/2023,RS147063,5.00,April.COMCH-HOST-STOR-D-1 - COOLSPIRiT CX Compute Single Site Dense Storage (SATA),Software Maintenance
Resources,Support Services,Coolspirit LTD,07/02/2023,RS147063,5.00,May.COMCH-HOST-STOR-D-1 - COOLSPIRiT CX Compute Single Site Dense Storage (SATA,Software Maintenance
Resources,Support Services,Coolspirit LTD,07/02/2023,RS147063,5.00,June.COMCH-HOST-STOR-D-1 - COOLSPIRiT CX Compute Single Site Dense Storage (SATA),Software Maintenance
Resources,Support Services,Coolspirit LTD,07/02/2023,RS147063,25.00,December.COMCH-HOST-STOR-D-1 - COOLSPIRiT CX Compute Single Site Dense Storage (SATA),Software Maintenance
Resources,Support Services,Coolspirit LTD,07/02/2023,RS147063,5.94,December.COMCH-HOST-STOR-F-50 - COOLSPIRiT CX Fast Storage (SAS/SSD),Software Maintenance
Resources,Support Services,Coolspirit LTD,20/02/2023,RS147506,420.00,COMCH-HOST-MEM-1GB COOLSPIRiT CX Compute 1GB RAMStart Date: 01-Aug-2022 End Date: 31-Jul-2023,Software Maintenance
Resources,Support Services,Coolspirit LTD,20/02/2023,RS147506,356.25,COMCH-HOST-STOR-F-50 COOLSPIRiT CX Fast Storage (SAS/SSD)Start Date: 01-Aug-2022 End Date: 31-Jul-2023,Software Maintenance
Resources,Support Services,Coolspirit LTD,20/02/2023,RS147506,399.00,COMCH-HOST-VCPUCOOLSPIRiT CX Compute Single Virtual ProcessorStart Date: 01-Aug-2022 End Date: 31-Jul-2023,Software Maintenance
People and Places,Cultural and Related Services,Corona Energy Retail 4 Limited,07/02/2023,PE147145,1365.92,"1630000670291- Promenadae Caf�, North Promenade, Thornton Cleveleys, Lancashire, FY5 1DB- Period 01/12/2022 () to 31/12/2022 ()",Electricity
People and Places,Cultural and Related Services,Corona Energy Retail 4 Limited,21/02/2023,PE147317,1324.06,"1630000670291- Promenade Caf� North Promenade,Lancashire-  Period () to (R)",Electricity
People and Places,Cultural and Related Services,Corona Energy Retail 4 Limited,01/02/2023,PE146973,887.41,"1640000960322- The Mount Lodge,Fleetwood- Period 01/12/2022 (R) to 01/01/2023 (R)",Electricity
People and Places,Cultural and Related Services,Corona Energy Retail 4 Limited,13/02/2023,PE147286,1099.10,"1650000008330- The Mount Pavilion,Fleetwood- Period 01/01/23 (R) to 01/02/23 (R)",Electricity
People and Places,Cultural and Related Services,Corona Energy Retail 4 Limited,13/02/2023,PE147287,881.82,"1640000960322- The Mount Lodge,Fleetwood- Period 01/01/23 (R) to 01/02/23 (R)",Electricity
People and Places,Cultural and Related Services,Corona Energy Retail 4 Limited,21/02/2023,PE147317,8658.02,"1600000162875- Marine Hall The  Esplanade,Lancashire- Period ()  to (R)",Electricity
People and Places,Cultural and Related Services,Corona Energy Retail 4 Limited,07/02/2023,PE147143,9651.25,"1600000162875- Marine Hall, The Esplanade, Fleetwood, Lancashire, FY7 6HF- Period 01/12/2022 () to 31/12/2022 ()",Electricity
People and Places,Cultural and Related Services,Corona Energy Retail 4 Limited,21/02/2023,PE147317,316.78,"1640000233705- Coastal Observation Point Rossall  Point,Lancashire- Period () to (R)",Electricity
People and Places,Cultural and Related Services,Corona Energy Retail 4 Limited,07/02/2023,PE147147,327.46,"1640000233705- Coastal Observation Point, Rossal Point, Fleetwood, Lancashire, FY7 8AF- Period 01/12/2022 () to 31/12/2022 ()",Electricity
People and Places,Support Services,Corona Energy Retail 4 Limited,21/02/2023,PE147317,13818.60,"1600000162857- Civic Centre Breck Road,Lancashire- Period () to  (R)",Electricity
People and Places,Support Services,Corona Energy Retail 4 Limited,07/02/2023,PE147142,14059.38,"1600000162857- Civic Centre, Breck Road, Blackpool, Lancashire, FY3 9DT- Period 01/12/2022 () to 31/12/2022 ()",Electricity
People and Places,Environmental Services,Corona Energy Retail 4 Limited,21/02/2023,PE147317,253.15,"1600000023675- Royles Brook Pumping Station Off Victoria Road  East,Lancashire- Period () to (R)",Electricity
People and Places,Environmental Services,Corona Energy Retail 4 Limited,07/02/2023,PE147141,164.31,"1600000023675- Civic Centre, Breck Road, Blackpool, Lancashire, FY3 9DT- Period 01/12/2022 () to 31/ 12/2022 ()",Electricity
People and Places,Planning and Development Servs,Corona Energy Retail 4 Limited,07/02/2023,PE147144,7026.74,"1620000784666- Main Hall, Adelaide Street, Fleetwood, Lancashire, FY7 6AB- Period 01/12/2022 () to 31/12/2022 ()",Electricity
People and Places,Planning and Development Servs,Corona Energy Retail 4 Limited,21/02/2023,PE147317,7392.84,"1620000784666- Main Hall Adelaide Street,Lancashire-  Period () to (R)",Electricity
People and Places,Planning and Development Servs,Corona Energy Retail 4 Limited,07/02/2023,PE147146,2399.23,"1640000184606- Wyre Council, Copse Road, Depot Copse Road, Lancashire, Fleetwood, FY7 6RP- Period 01/12/2022 () to 31/12/2022 ()",Electricity
People and Places,Planning and Development Servs,Corona Energy Retail 4 Limited,21/02/2023,PE147317,2515.16,"1640000184606- Council Depot Copse Road,Lancashire-  Period () to (R)",Electricity
Resources,Support Services,Critiqom LTD,08/02/2023,RS147173,5.21,NNDR Reminders,Postage
Resources,Support Services,Critiqom LTD,08/02/2023,RS147173,0.12,NNDR Reminders -  Energy Surcharge,Postage
Resources,Support Services,Critiqom LTD,08/02/2023,RS147173,157.84,Ctax Summons,Postage
Resources,Support Services,Critiqom LTD,08/02/2023,RS147173,3.77,Ctax Summons - Energy  Surcharge,Postage
Resources,Support Services,Critiqom LTD,08/02/2023,RS147173,6.29,NNDR Summons,Postage
Resources,Support Services,Critiqom LTD,08/02/2023,RS147173,0.15,NNDR Summons - Energy  Surcharge,Postage
Resources,Central Services to the Public,Critiqom LTD,08/02/2023,RS147173,3.43,IQ post - Electoral -  Energy Surcharge,Postage
Resources,Central Services to the Public,Critiqom LTD,08/02/2023,RS147173,448.00,Daily Bills,Postage
Resources,Central Services to the Public,Critiqom LTD,08/02/2023,RS147173,10.71,Daily Bills - Energy  Surcharge,Postage
Resources,Central Services to the Public,Critiqom LTD,08/02/2023,RS147174,1846.53,Daily Bills,Postage
Resources,Central Services to the Public,Critiqom LTD,08/02/2023,RS147173,143.59,IQ post - Electoral,Postage
Resources,Support Services,Critiqom LTD,08/02/2023,RS147173,291.13,IQ post - Off Serv  Admin,Postage
Resources,Support Services,Critiqom LTD,08/02/2023,RS147173,6.96,IQ post - Off Serv  Admin - Energy Surcharge,Postage
Resources,Support Services,Critiqom LTD,08/02/2023,RS147174,784.53,Council Tax Reminders,Postage
Resources,Support Services,Critiqom LTD,08/02/2023,RS147174,33.21,NNDR Reminders,Postage
Resources,Support Services,Critiqom LTD,08/02/2023,RS147174,439.11,Council Tax Summons,Postage
Resources,Support Services,Critiqom LTD,08/02/2023,RS147174,17.81,NNDR Summons,Postage
Resources,Support Services,Critiqom LTD,08/02/2023,RS147173,11.32,IQ post - Recovery,Postage
Resources,Support Services,Critiqom LTD,08/02/2023,RS147173,0.27,IQ post - Recovery -  Energy Surcharge,Postage
Resources,Support Services,Critiqom LTD,08/02/2023,RS147173,249.33,Ctax Reminders,Postage
Resources,Support Services,Critiqom LTD,08/02/2023,RS147173,5.96,Ctax Reminders -  Energy Surcharge,Postage
Resources,Central Services to the Public,Critiqom LTD,13/02/2023,RS147173,500.48,HSF3 Huggg DBR  Letters,Household Support Fund
Resources,Housing General Fund,Critiqom LTD,08/02/2023,RS147174,123.43,Benefit Notifications,Postage
Resources,Housing General Fund,Critiqom LTD,08/02/2023,RS147173,29.46,Benefit Notifications,Postage
Resources,Housing General Fund,Critiqom LTD,08/02/2023,RS147173,0.70,Benefit Notifications  - Energy Surcharge,Postage
Resources,Support Services,Critiqom LTD,08/02/2023,RS147173,941.09,IQ post - CC,Postage
Resources,Support Services,Critiqom LTD,08/02/2023,RS147173,34.47,IQ post - CC - Energy  Surcharge,Postage
Resources,Support Services,Critiqom LTD,08/02/2023,RS147173,544.81,IQ Post - Planning,Postage
Resources,Support Services,Critiqom LTD,08/02/2023,RS147173,13.02,IQ Post - Planning -  Energy Surcharge,Postage
Resources,Cultural and Related Services,Daisy Communications LTD,20/02/2023,RS147209,60.96,Monthly Phone Charges,Telephone - Buildings and Offices
Resources,Support Services,Daisy Communications LTD,20/02/2023,RS147209,2.20,Monthly Phone Charges,Telephone - Buildings and Offices
Resources,Cultural and Related Services,Daisy Communications LTD,20/02/2023,RS147209,10.71,Monthly Phone Charges,Internet and Telephone Charges
Resources,Corporate and Democratic Core,Daisy Communications LTD,20/02/2023,RS147209,10.71,Monthly Phone Charges,Internet and Telephone Charges
Resources,Support Services,Daisy Communications LTD,20/02/2023,RS147209,16.95,Monthly Phone Charges,Internet and Telephone Charges
Resources,Cultural and Related Services,Daisy Communications LTD,20/02/2023,RS147209,27.65,Monthly Phone Charges,Internet and Telephone Charges
Resources,Planning and Development Servs,Daisy Communications LTD,20/02/2023,RS147209,42.92,Monthly Phone Charges,Advertising - General
Resources,Cultural and Related Services,Daisy Communications LTD,20/02/2023,RS147209,10.71,Monthly Phone Charges,Telephone - Buildings and Offices
Resources,Cultural and Related Services,Daisy Communications LTD,20/02/2023,RS147209,10.71,Monthly Phone Charges,Telephone - Buildings and Offices
Resources,Cultural and Related Services,Daisy Communications LTD,20/02/2023,RS147209,33.44,Monthly Phone Charges,Telephone - Buildings and Offices
Resources,Environmental Services,Daisy Communications LTD,20/02/2023,RS147209,10.71,Monthly Phone Charges,Telephone - Buildings and Offices
Resources,Planning and Development Servs,Daisy Communications LTD,20/02/2023,RS147209,0.52,Monthly Phone Charges,Telephone - Buildings and Offices
Resources,Support Services,Daisy Communications LTD,20/02/2023,RS147209,33.30,Monthly Phone Charges,Telephone - Buildings and Offices
Resources,Planning and Development Servs,Daisy Communications LTD,20/02/2023,RS147209,10.71,Monthly Phone Charges,Telephone - Buildings and Offices
Resources,Support Services,Daisy Communications LTD,20/02/2023,RS147209,21.42,Monthly Phone Charges,Internet and Telephone Charges
Resources,Support Services,Daisy Communications LTD,20/02/2023,RS147209,44.27,Monthly Phone Charges,Internet and Telephone Charges
Resources,Cultural and Related Services,Daisy Communications LTD,20/02/2023,RS147209,21.42,Monthly Phone Charges,Telephone - Buildings and Offices
Resources,Cultural and Related Services,Daisy Communications LTD,20/02/2023,RS147209,10.71,Monthly Phone Charges,Telephone - Buildings and Offices
Resources,Cultural and Related Services,Daisy Communications LTD,20/02/2023,RS147209,66.60,Monthly Phone Charges,Telephone - Buildings and Offices
Resources,Cultural and Related Services,Daisy Communications LTD,20/02/2023,RS147209,11.00,Monthly Phone Charges,Telephone - Buildings and Offices
Resources,Environmental Services,Daisy Communications LTD,20/02/2023,RS147209,32.13,Monthly Phone Charges,Telephone - Buildings and Offices
Resources,Support Services,Daisy Communications LTD,20/02/2023,RS147209,10.71,Monthly Phone Charges,Telephone - Buildings and Offices
Resources,Support Services,Daisy Communications LTD,20/02/2023,RS147209,1860.27,Monthly Phone Charges,Telephone - Buildings and Offices
Resources,Support Services,Daisy Communications LTD,20/02/2023,RS147209,10.71,Monthly Phone Charges,Alarm Systems and Security - Annual
Resources,Planning and Development Servs,Daisy Communications LTD,20/02/2023,RS147209,2.20,Monthly Phone Charges,Telephone - Buildings and Offices
Resources,"Cultural, Environ and Planning",DANFO (UK) LTD,28/02/2023,RS147643,18699.00,To deliver Changing Places Facility Fleetwood scheme,Contract (New CCR)
People and Places,Environmental Services,DANFO (UK) LTD,07/02/2023,PE147131,21763.10,Public Conveniences - Maintenance and Cleaning 2022/23,Other Establishments
Resources,Support Services,Dell Corporation LTD,14/02/2023,RS147346,22169.96,"PowerEdge R650 Server Inc 3yr Pro Support 11,084.98",Comp Hardware Purchases
People and Places,Environmental Services,Dennis Eagle LTD,23/02/2023,PE147314,1068.65,Parts,Daywork Materials (Excl.Tyres)
People and Places,Environmental Services,Dennis Eagle LTD,23/02/2023,PE147392,192.83,Parts,Daywork Materials (Excl.Tyres)
People and Places,Environmental Services,Dennis Eagle LTD,20/02/2023,PE147315,190.00,surcharges for EPE0004631,Daywork Materials (Excl.Tyres)
People and Places,Support Services,Dr Tree Surgeons,23/02/2023,PE147568,350.00,1 Emergency tree work on Tarn way.remove One fallen Willow Tree.Total Net Amount: 350.00VAT @ 20%: 70.00Quote Total: 420.00,Special Maintenance - Trees
People and Places,Support Services,Dr Tree Surgeons,27/02/2023,PE147611,250.00,Quote Number: 702Quote Ref: King George V Playing FieldThe coppicing of one Willow Tree by wall. 250.00 Total Net Amount: 250.00VAT @ 20%: 50.00Quote Total: 300.00,Special Maintenance - Trees
People and Places,Support Services,Dr Tree Surgeons,07/02/2023,PE147167,650.00,Quote Number: 696  - Rowntree Ave T1 &#8208; Flowering Cherry to crown reduce roadside and removedeadwood.200.00 200.00T2 &#8208; Alder remove lowest lateral branch over path. 20.00 20.00G1 &#8208; To remove lowest lateral branches. 30.00 30.0,Special Maintenance - Trees
People and Places,Highways,Dr Tree Surgeons,20/02/2023,PE147402,420.00,Quote Number: 695 Wansbeck Ave Fleetwood1 Crown raise 3 x Poor condi on Ash trees and all around deadwood onWansbeck Ave Fleetwood.300.00 Total Net Amount: 300.00VAT @ 20%: 60.00Quote Total: 360.00Quote Number: 697 Alberts St Carp,Maintenance of Trees and Shrubs
People and Places,Highways,Dr Tree Surgeons,20/02/2023,PE147469,300.00,Quote Number: 695 Wansbeck Ave Fleetwood1 Crown raise 3 x Poor condi on Ash trees and all around deadwood onWansbeck Ave Fleetwood.300.00 Total Net Amount: 300.00VAT @ 20%: 60.00Quote Total: 360.00Quote Number: 697 Alberts St Carp,Maintenance of Trees and Shrubs
People and Places,Planning and Development Servs,Drax Energy Solutions Limited,20/02/2023,PE147263,-1049.98,"320000534719 Unit 3 Dock Ave, Fleetwood, FY7 6PS 01/11/22 to 30/11/22 canx bill",Electricity
People and Places,Planning and Development Servs,Drax Energy Solutions Limited,20/02/2023,PE147260,-611.10,"320000534719 Unit 3 Dock Ave, Fleetwood, FY7 6PS 10/08/22 to 31/08/22 canx bill",Electricity
People and Places,Planning and Development Servs,Drax Energy Solutions Limited,20/02/2023,PE147261,-1343.47,"320000534719 Unit 3 Dock Ave, Fleetwood, FY7 6PS 01/09/22 to 30/09/22 canx bill",Electricity
People and Places,Planning and Development Servs,Drax Energy Solutions Limited,20/02/2023,PE147258,-1049.98,"3200000534700 Unit 2 Dock Ave, Fleetwood, FY7 6PS 01/11/22 to 30/11/22 canx bill",Electricity
People and Places,Planning and Development Servs,Drax Energy Solutions Limited,20/02/2023,PE147259,-695.52,"3200000534700 Unit 2 Dock Ave, Fleetwood, FY7 6PS 01/12/22 to 31/12/22 canx bill",Electricity
People and Places,Planning and Development Servs,Drax Energy Solutions Limited,20/02/2023,PE147256,-1343.47,"3200000534700 Unit 2 Dock Ave, Fleetwood, FY7 6PS 01/09/22 to 30/09/22 canx bill",Electricity
People and Places,Planning and Development Servs,Drax Energy Solutions Limited,20/02/2023,PE147266,209.42,"3200000534700 Unit 2 Dock Ave, Fleetwood, FY7 6PS 01/09/22 to 30/09/22 Est",Electricity
People and Places,Planning and Development Servs,Drax Energy Solutions Limited,20/02/2023,PE147265,115.06,"3200000534700 Unit 2 Dock Ave, Fleetwood, FY7 6PS 10/08/22 to 31/08/22 Est",Electricity
People and Places,Planning and Development Servs,Drax Energy Solutions Limited,20/02/2023,PE147270,446.14,"3200000534700 Unit 2 Dock Ave, Fleetwood, FY7 6PS 01/01/23 to 31/01/23 Est",Electricity
People and Places,Planning and Development Servs,Drax Energy Solutions Limited,20/02/2023,PE147269,394.47,"3200000534700 Unit 2 Dock Ave, Fleetwood, FY7 6PS 01/12/22 to 31/12/22 Est",Electricity
People and Places,Planning and Development Servs,Drax Energy Solutions Limited,20/02/2023,PE147268,357.48,"3200000534700 Unit 2 Dock Ave, Fleetwood, FY7 6PS 01/11/22 to 30/11/22 Est",Electricity
People and Places,Planning and Development Servs,Drax Energy Solutions Limited,20/02/2023,PE147267,164.95,"3200000534700 Unit 2 Dock Ave, Fleetwood, FY7 6PS 01/10/22 to 31/10/22 Est",Electricity
People and Places,Planning and Development Servs,Drax Energy Solutions Limited,20/02/2023,PE147278,138.52,"3200000534737 Unit 5 Dock Ave, Fleetwood, FY7 6PS 01/01/23 to 31/01/23 Act",Electricity
People and Places,Planning and Development Servs,Drax Energy Solutions Limited,20/02/2023,PE147277,139.59,"3200000534728 Unit 4, Dock Ave, Fleetwood, FY7 6PS 01/01/23 to 31/01/23 Act",Electricity
People and Places,Planning and Development Servs,Drax Energy Solutions Limited,20/02/2023,PE147276,437.53,"320000534719 Unit 3 Dock Ave, Fleetwood, FY7 6PS 01/01/23 to 31/01/23 Est",Electricity
People and Places,Planning and Development Servs,Drax Energy Solutions Limited,20/02/2023,PE147275,387.00,"320000534719 Unit 3 Dock Ave, Fleetwood, FY7 6PS 01/12/22 to 31/12/22 Est",Electricity
People and Places,Planning and Development Servs,Drax Energy Solutions Limited,20/02/2023,PE147274,346.02,"320000534719 Unit 3 Dock Ave, Fleetwood, FY7 6PS 01/11/22 to 30/11/22 Est",Electricity
People and Places,Planning and Development Servs,Drax Energy Solutions Limited,20/02/2023,PE147273,156.76,"320000534719 Unit 3 Dock Ave, Fleetwood, FY7 6PS 01/10/22 to 31/10/22 Est",Electricity
People and Places,Planning and Development Servs,Drax Energy Solutions Limited,20/02/2023,PE147272,199.94,"320000534719 Unit 3 Dock Ave, Fleetwood, FY7 6PS 01/09/22 to 30/09/22 Est",Electricity
People and Places,Planning and Development Servs,Drax Energy Solutions Limited,20/02/2023,PE147271,88.82,"320000534719 Unit 3 Dock Ave, Fleetwood, FY7 6PS 10/08/22 to 31/08/22 Est",Electricity
People and Places,Planning and Development Servs,Drax Energy Solutions Limited,20/02/2023,PE147285,128.30,"3200000534807 LL Supply c/o ABP Port Office, Dock Ave, Fleetwood, FY7 6PS 01/01/23 to 31/01/23 Act",Electricity
People and Places,Planning and Development Servs,Drax Energy Solutions Limited,20/02/2023,PE147282,144.97,"3200000534773 Unit 8, Dock Ave, Fleetwood, FY7 6PS 01/01/23 to 31/01/23 Act",Electricity
People and Places,Planning and Development Servs,Drax Energy Solutions Limited,20/02/2023,PE147281,134.21,"3200000534764 Unit 7B Dock Ave, Fleetwood, FY7 6PS 01/01/23 to 31/01/23 Act",Electricity
People and Places,Planning and Development Servs,Drax Energy Solutions Limited,20/02/2023,PE147280,138.52,"3200000534755 Unit 7A, Dock Ave, Fleetwood, FY7 6PS 01/01/23 to 31/01/23 Act",Electricity
People and Places,Planning and Development Servs,Drax Energy Solutions Limited,20/02/2023,PE147279,139.06,"3200000534746 Unit 6, Dock Ave, Fleetwood, FY7 6PS 01/01/23 to 31/01/23 Act",Electricity
People and Places,Planning and Development Servs,Drax Energy Solutions Limited,20/02/2023,PE147283,138.52,"320000534782 Unit 9 Dock Ave, Fleetwood, FY7 6PS 01/01/23 to 31/01/23 Act",Electricity
People and Places,Planning and Development Servs,Drax Energy Solutions Limited,20/02/2023,PE147284,136.36,"320000534791 Unit 10 Dock Ave, Fleetwood, FY7 6PS 01/01/23 to 31/01/23 Act",Electricity
People and Places,Planning and Development Servs,Drax Energy Solutions Limited,20/02/2023,PE146518,695.52,"320000534719 Unit 3 Dock Ave, Fleetwood, FY7 6PS 01/12/22 to 31/12/22 Est",Electricity
People and Places,Planning and Development Servs,Drax Energy Solutions Limited,20/02/2023,PE146517,695.52,"3200000534700 Unit 2 Dock Ave, Fleetwood, FY7 6PS 01/12/22 to 31/12/22 Est",Electricity
People and Places,Planning and Development Servs,Drax Energy Solutions Limited,20/02/2023,PE146263,805.42,"3200000534694 1 Dock Ave, Fleetwood, FY7 6PS 01/10/22 to 31/10/22",Electricity
People and Places,Planning and Development Servs,Drax Energy Solutions Limited,20/02/2023,PE146262,807.36,"3200000534694 1 Dock Ave, Fleetwood, FY7 6PS 01/09/22 to 30/09/22",Electricity
People and Places,Planning and Development Servs,Drax Energy Solutions Limited,20/02/2023,PE146261,780.34,"3200000534694 1 Dock Ave, Fleetwood, FY7 6PS 01/11/22 to 30/11/22",Electricity
People and Places,Planning and Development Servs,Drax Energy Solutions Limited,20/02/2023,PE146020,1049.98,"3200000534719 Unit 3, Dock Ave, Fleetwood,  FY7 6PS( 01/11/22 to 30/11/22)Est",Electricity
People and Places,Planning and Development Servs,Drax Energy Solutions Limited,20/02/2023,PE146019,1049.98,"3200000534700 Unit 2, Dock Ave, Fleetwood,  FY7 6PS( 01/11/22 to 30/11/22)Est",Electricity
People and Places,Planning and Development Servs,Drax Energy Solutions Limited,20/02/2023,PE145295,951.09,"320000534719 Unit 3 Dock Ave, Fleetwood, FY7 6PS 01/10/22 to 31/10/22 est",Electricity
People and Places,Planning and Development Servs,Drax Energy Solutions Limited,20/02/2023,PE145294,951.09,"3200000534700 Unit 2 Dock Ave, Fleetwood, FY7 6PS 01/10/22 to 31/10/22 est",Electricity
People and Places,Planning and Development Servs,Drax Energy Solutions Limited,20/02/2023,PE144885,270.52,"3200000534694 1 Dock Ave, Fleetwood, FY7 6PS 10/08/22 to 31/08/22",Electricity
People and Places,Planning and Development Servs,Drax Energy Solutions Limited,20/02/2023,PE144875,1343.47,"320000534719 Unit 3 Dock Ave, Fleetwood, FY7 6PS 01/09/22 to 30/09/22 est",Electricity
People and Places,Planning and Development Servs,Drax Energy Solutions Limited,20/02/2023,PE144874,1343.47,"3200000534700 Unit 2 Dock Ave, Fleetwood, FY7 6PS 01/09/22 to 30/09/22 Est",Electricity
People and Places,Planning and Development Servs,Drax Energy Solutions Limited,20/02/2023,PE144869,611.10,"320000534719 Unit 3 Dock Ave, Fleetwood, FY7 6PS 10/08/22 to 31/08/22 Est",Electricity
People and Places,Planning and Development Servs,Drax Energy Solutions Limited,20/02/2023,PE144867,128.18,"3200000534746 Unit 6, Dock Ave, Fleetwood, FY7 6PS 10/08/22 to 31/08/22 Act",Electricity
People and Places,Planning and Development Servs,Drax Energy Solutions Limited,20/02/2023,PE144866,611.10,"3200000534700 Unit 2 Dock Ave, Fleetwood, FY7 6PS 10/08/22 to 31/08/22 Est",Electricity
People and Places,Planning and Development Servs,Drax Energy Solutions Limited,20/02/2023,PE147257,-951.09,"3200000534700 Unit 2 Dock Ave, Fleetwood, FY7 6PS 01/10/22 to 31/10/22 canx bill",Electricity
People and Places,Planning and Development Servs,Drax Energy Solutions Limited,20/02/2023,PE147255,-611.10,"3200000534700 Unit 2 Dock Ave, Fleetwood, FY7 6PS 10/08/2022 to 31/08/22 canx bill",Electricity
People and Places,Planning and Development Servs,Drax Energy Solutions Limited,20/02/2023,PE147264,-695.52,"320000534719 Unit 3 Dock Ave, Fleetwood, FY7 6PS 01/12/22 to 31/12/22 canx bill",Electricity
People and Places,Planning and Development Servs,Drax Energy Solutions Limited,20/02/2023,PE147262,-951.09,"320000534719 Unit 3 Dock Ave, Fleetwood, FY7 6PS 01/10/22 to 31/10/22 canx bill",Electricity
People and Places,Cultural and Related Services,E.ON Next Energy Ltd,08/02/2023,PE147154,-533.57,"Childrens Corner, North Prom, FY5 1DB Reversed Charges 29/11/22",Electricity
People and Places,Cultural and Related Services,EAS Electrical Mechanical,20/02/2023,PE147479,275.00,Repair damaged lightning conductor at Thornton Sports Centre,Responsive Building Maintenance
People and Places,Cultural and Related Services,EAS Electrical Mechanical,20/02/2023,PE147476,192.15,"Isolate power, remove light fitting adjust wiring and install new fitting on wall at cottam hall pavilion",Responsive Building Maintenance
People and Places,Cultural and Related Services,EAS Electrical Mechanical,15/02/2023,PE147351,183.10,Investigate no cold water in ladies area at cottam hall,Responsive Building Maintenance
People and Places,Cultural and Related Services,EAS Electrical Mechanical,20/02/2023,PE147477,206.33,isolate power remove faulty downlight,Responsive Building Maintenance
People and Places,Cultural and Related Services,EAS Electrical Mechanical,14/02/2023,PE147338,157.75,"Removed the back of the kitchen, turned off stop clock capped and lagged at Memorial Park Bowling Club",Responsive Building Maintenance
People and Places,Environmental Services,EAS Electrical Mechanical,14/02/2023,PE147342,78.00,Investigate loose outside tap at Preesall Cemetery,Special Works
People and Places,Environmental Services,EAS Electrical Mechanical,14/02/2023,PE147340,48.00,Isolate cold main feed and test at Garstang Road Cemetery,Responsive Building Maintenance
People and Places,Environmental Services,EAS Electrical Mechanical,14/02/2023,PE147339,48.00,Investigate leak on toilet and repaired at Garstang Road Cemetery,Responsive Building Maintenance
People and Places,Planning and Development Servs,EAS Electrical Mechanical,14/02/2023,PE147337,48.00,Unblock belfast sink in staff area at Fleetwood Market,Responsive Building Maintenance
People and Places,Support Services,EAS Electrical Mechanical,14/02/2023,PE147341,123.80,Faulty Paxton exit button - replaced with new at Civic Centre,Responsive Building Maintenance
People and Places,Planning and Development Servs,EAS Electrical Mechanical,10/02/2023,PE147254,9976.16,Carry out all electrical and heating works to units 160 and 180 all as per specification and as per your quotation dated 15/9/22 to bring units up to standard to accommodate the Market Manager and the staff and cash office team.,Responsive Building Maintenance
People and Places,Support Services,EAS Electrical Mechanical,20/02/2023,PE147478,48.00,Install De-fib and connect new power supply,Responsive Building Maintenance
People and Places,Support Services,EAS Electrical Mechanical,01/02/2023,PE146981,72.00,Civic Centre: Investigate flow temperature problem.  Flow Temp getting to 60 degrees thoughout the day - unable to see any issues,Responsive Building Maintenance
People and Places,Support Services,EAS Electrical Mechanical,10/02/2023,PE147293,86.52,Civic Centre: investigate faulty urinal and changed trap,Responsive Building Maintenance
People and Places,Cultural and Related Services,EAS Electrical Mechanical,15/02/2023,PE147359,1138.55,Lag all pipework at Kite Club,Responsive Building Maintenance
People and Places,Planning and Development Servs,EAS Electrical Mechanical,14/02/2023,PE147336,3920.28,Full annual gas service & tightness test on all gas heaters at Fleetwood Market,Planned Building Maintenance
People and Places,Support Services,EAS Electrical Mechanical,20/02/2023,PE147472,1506.20,Undertake annual service o air handling units and boilers,Planned Building Maintenance
People and Places,Cultural and Related Services,EAS Electrical Mechanical,10/02/2023,PE147295,56.06,Marine Hall: Remove and replace broken toilet handle and test,Responsive Building Maintenance
People and Places,Cultural and Related Services,EAS Electrical Mechanical,10/02/2023,PE147294,91.93,"Marine Hall: Isolate water to tap and tighten.  Tighten tap and test on testing the isolation valve was leaking, trace pipework to gate valve and isolate, replace faulty isolation and test",Responsive Building Maintenance
People and Places,Cultural and Related Services,EAS Electrical Mechanical,20/02/2023,PE147486,96.00,Balanced all radiators at Thornton Little Theatre,Responsive Building Maintenance
People and Places,Support Services,EK Motors Factors LTD,08/02/2023,PE147196,142.00,Parts,Daywork Materials (Excl.Tyres)
People and Places,Support Services,EK Motors Factors LTD,08/02/2023,PE147187,23.96,Parts,Materials and Consumables
People and Places,Support Services,EK Motors Factors LTD,08/02/2023,PE147188,3.61,Parts,Materials and Consumables
People and Places,Support Services,EK Motors Factors LTD,08/02/2023,PE147198,10.28,Parts,Daywork Materials (Excl.Tyres)
People and Places,Environmental Services,EK Motors Factors LTD,08/02/2023,PE147192,20.88,Parts,Daywork Materials (Excl.Tyres)
People and Places,Support Services,EK Motors Factors LTD,08/02/2023,PE147184,12.56,Parts,Daywork Materials (Excl.Tyres)
People and Places,Support Services,EK Motors Factors LTD,08/02/2023,PE147183,20.31,Parts,Daywork Materials (Excl.Tyres)
People and Places,Environmental Services,EK Motors Factors LTD,08/02/2023,PE147194,34.14,Parts,Daywork Materials (Excl.Tyres)
People and Places,Environmental Services,EK Motors Factors LTD,08/02/2023,PE147193,34.14,Parts,Daywork Materials (Excl.Tyres)
People and Places,Support Services,EK Motors Factors LTD,08/02/2023,PE147197,27.60,Parts,Daywork Materials (Excl.Tyres)
People and Places,Support Services,EK Motors Factors LTD,08/02/2023,PE147185,64.92,Parts,Daywork Materials (Excl.Tyres)
People and Places,Support Services,EK Motors Factors LTD,08/02/2023,PE147195,19.80,Parts,Daywork Materials (Excl.Tyres)
People and Places,Support Services,EK Motors Factors LTD,08/02/2023,PE147186,11.49,Parts,Daywork Materials (Excl.Tyres)
People and Places,Cultural and Related Services,EK Motors Factors LTD,08/02/2023,PE147191,95.11,Parts,Daywork Materials (Excl.Tyres)
People and Places,Cultural and Related Services,EK Motors Factors LTD,08/02/2023,PE147190,10.99,Parts,Daywork Materials (Excl.Tyres)
People and Places,Cultural and Related Services,EK Motors Factors LTD,08/02/2023,PE147189,98.91,Parts,Daywork Materials (Excl.Tyres)
Resources,Central Services to the Public,Electoral Reform Services,01/02/2023,RS146991,3710.43,Individual Electoral Registration 2022 Fees for responses from 1/6/2022 - 31/12/2022,Postage
People and Places,Environmental Services,Engie Power Limited,21/02/2023,PE147442,581.17,"1610004845304(01/01/23 to  31/01/23)Fleetwood Corp Cemetery, Beach Rd, Fleetwood, FY7 8PH (A/A)",Electricity
People and Places,Planning and Development Servs,Engie Power Limited,21/02/2023,PE147434,49.45,"1640000947215(01/01/23 to 31/01/23)Landlord  Supply, Fleetwood Market, Adelaide St, Fleetwood, FY7 6AB (A/A)",Electricity
People and Places,Cultural and Related Services,Engie Power Limited,21/02/2023,PE147453,532.53,"1610004890636(01/01/23 to  31/01/23)Fishermans Walk, Lord St, Fleetwood, FY7 6DU (E/E)",Electricity
People and Places,Planning and Development Servs,Engie Power Limited,21/02/2023,PE147429,64.34,"1640000947145(01/01/23 to 31/01/23)Kiosk 2,  Fleetwood Market, Adelaie St, Fleetwood, FY7 6AB (A/A)",Electricity
People and Places,Planning and Development Servs,Engie Power Limited,21/02/2023,PE147428,55.48,"1640000947136(01/01/23 to 31/01/23)Kiosk 1,  Fleetwood Market, Adelaide St, Fleetwood, FY7 6AB (A/A)",Electricity
People and Places,Environmental Services,Engie Power Limited,08/02/2023,PE146886,165.10,"1610023169146(01/12/22 to 31/12/22)Public Conveniences, Barton Square, Knott End on Sea, Lancashire, FY6 0AG (E/E)",Electricity
People and Places,Environmental Services,Engie Power Limited,08/02/2023,PE146887,152.65,"1630000819048(01/12/22 to 31/12/22)Public Conveniences, Cherestanc Square, Garstang, Lancashire, PR3 1EF (E/E)",Electricity
People and Places,Environmental Services,Engie Power Limited,21/02/2023,PE147440,240.62,"1610004846520(01/01/23 to 31/01/23)Boating  Lake, Laidleys Walk, Fleetwood, FY7 7HU (E/E)",Electricity
People and Places,Environmental Services,Engie Power Limited,21/02/2023,PE147438,149.69,"1610004845322(01/01/23 to 31/01/23)PC,  Beach Rd, Fleetwood, FY7 8PH (E/E)",Electricity
People and Places,Environmental Services,Engie Power Limited,21/02/2023,PE147445,160.66,"1610023169146(01/01/23 to 31/01/23)Public  Conveniences, Barton Square, Knott End on Sea, Lancashire, FY6 0AG (E/E)",Electricity
People and Places,Environmental Services,Engie Power Limited,21/02/2023,PE147444,218.71,"1610013371994(01/01/23 to 31/01/23)PC, The  Weind, Great Eccleston, PR3 0ZU (E/E)",Electricity
People and Places,Environmental Services,Engie Power Limited,21/02/2023,PE147447,321.99,"1610023251891(01/01/23 to 31/01/23)PC,  Gubberford Lane, Scorton, PR3 1BL (E/E)",Electricity
People and Places,Planning and Development Servs,Engie Power Limited,21/02/2023,PE147425,72.67,"1640000947181(01/01/23 to 31/01/23)Kiosk 6,  Fleetwood Market, Adelaide St, Fleetwood, FY7 6AB (A/A)",Electricity
People and Places,Planning and Development Servs,Engie Power Limited,21/02/2023,PE147424,64.49,"1640000947172(01/01/23 to 31/01/23)Kiosk 5,  Fleetwood Market, Adelaide St, Fleetwood, FY7 6AB (A/A)",Electricity
People and Places,Planning and Development Servs,Engie Power Limited,21/02/2023,PE147423,77.19,"1640000947163(01/01/23 to 31/01/23)Kiosk 4,  Fleetwood Market, Adelaide St, Fleetwood, FY7 6AB (A/A)",Electricity
People and Places,Planning and Development Servs,Engie Power Limited,21/02/2023,PE147422,95.04,"1640000947154(01/01/23 to 31/01/23)Kiosk 3, Fleetwood Market, Adelaide St, Fleetwood, FY7 6AB (E/E)",Electricity
People and Places,Planning and Development Servs,Engie Power Limited,21/02/2023,PE147433,68.77,"1640000947206(01/01/23 to 31/01/23)Kiosk 8,  Fleetwood Market, Adelaide St, Fleetwood, FY7 6AB (A/A)",Electricity
People and Places,Planning and Development Servs,Engie Power Limited,21/02/2023,PE147432,283.72,"1640000947190(01/01/23 to 31/01/23)Kiosk 7,  Fleetwood Market, Adelaide St, Fleetwood, FY7 6AB (A/A)",Electricity
People and Places,Environmental Services,Engie Power Limited,21/02/2023,PE147446,249.15,"1610023195261(01/01/23 to 31/01/23)PC,  Smallwood Hey, Pilling, Preston, PR3 6HJ (E/E)",Electricity
People and Places,Environmental Services,Engie Power Limited,21/02/2023,PE147431,190.44,"1640000218200(01/01/23 to 31/01/23)PC, Bold  St, Fleetwood, FY7 6BW (E/E)",Electricity
People and Places,Environmental Services,Engie Power Limited,21/02/2023,PE147426,143.92,"1640000258365(01/01/23 to 31/01/23)PC,  River Road, Thornton Cleveleys, FY5 5LR (E/E)",Electricity
People and Places,Environmental Services,Engie Power Limited,21/02/2023,PE147460,114.38,"1620001343345(01/01/23 to 31/01/23)PC,  Thornton Centre, Victoria Rd East, FY5 5DZ (A/A)",Electricity
People and Places,Environmental Services,Engie Power Limited,21/02/2023,PE147462,297.22,"1630000740099(01/01/23 to 31/01/23)PC,  Wyreside, Knott End on Sea, FY6 0AA (E/E)",Electricity
People and Places,Environmental Services,Engie Power Limited,21/02/2023,PE147463,150.63,"1630000819048(01/01/23 to 31/01/23)Public  Conveniences, Cherestanc Square, Garstang, Lancashire, PR3 1EF (E/E)",Electricity
People and Places,Cultural and Related Services,Engie Power Limited,21/02/2023,PE147427,91.79,"1640000400837(01/01/23 to 31/01/23)Beach  Huts, The Esplanade, Fleetwood, FY7 6QD (E/E)",Electricity
People and Places,Cultural and Related Services,Engie Power Limited,21/02/2023,PE147430,263.66,"1640000118533(01/01/23 to 31/01/23)Feeder  Pillar, Vicarage Rd, Poulton le Fylde, FY6 7BE (A/A)",Electricity
People and Places,Cultural and Related Services,Engie Power Limited,21/02/2023,PE147459,102.23,"1640000004924(01/01/23 to 31/01/23)Feeder  Pillar, Hawthorne Park, Hawthorne Rd, Thornton Cleveleys, FY5 5DH (A/A)",Electricity
People and Places,Cultural and Related Services,Engie Power Limited,21/02/2023,PE147454,73.53,"1610004863776(01/01/23 to 31/01/23)Tourist  Information Office, The Esplanade, Fleetwood, FY7 6DL (A/A)",Electricity
People and Places,Environmental Services,Engie Power Limited,21/02/2023,PE147441,503.86,"1610004828771(01/01/23 to 31/01/23)Council  Depot, Chatsworth Day Centre, Chatsworth Ave, Fleetwood, FY7 8AP (E/E)",Electricity
People and Places,Cultural and Related Services,Engie Power Limited,21/02/2023,PE147443,135.63,"1610004775074(01/01/23 to 31/01/23)The  Windmill, Fleetwood Rd North, Thornton Cleveleys, FY5 4BP (A/A)",Electricity
People and Places,Cultural and Related Services,Engie Power Limited,21/02/2023,PE147467,119.09,"1610004775083(01/01/23 to 31/01/23)The Windmill, Fleetwood Road North, Thornton Cleveleys, FY5 4BP (E/E)",Electricity
People and Places,Cultural and Related Services,Engie Power Limited,21/02/2023,PE147466,122.00,"1610004775083(01/12/22 to 31/12/22)The  Windmill, Fleetwood Road North, Thornton Cleveleys, FY5 4BP (E/E)",Electricity
People and Places,Cultural and Related Services,Engie Power Limited,21/02/2023,PE147465,110.54,"1610004775083(01/11/22 to 30/11/22)The  Windmill, Fleetwood Road North, Thornton Cleveleys, FY5 4BP (E/E)",Electricity
People and Places,Cultural and Related Services,Engie Power Limited,21/02/2023,PE147464,100.28,"1610004775083(02/10/22 to 31/10/22)The  Windmill, Fleetwood Road North, Thornton Cleveleys, FY5 4BP (E/E)",Electricity
People and Places,Cultural and Related Services,Engie Power Limited,21/02/2023,PE147437,532.09,"1610004863623(01/01/23 to 31/01/23)Pitch  &amp; Putt Kiosk, Carr Rd, The Esplanade, Fleetwood, FY7 6QE (E/E)",Electricity
People and Places,Cultural and Related Services,Engie Power Limited,21/02/2023,PE147436,343.98,"1610004863605(01/01/23 to 31/01/23)Central  Toilets Kiosk, The Esplanade, Fleetwood, FY7 7BE (A/A)",Electricity
People and Places,Cultural and Related Services,Engie Power Limited,21/02/2023,PE147435,322.24,"1610004846558(01/01/23 to 31/01/23)Pump  Station, The Esplanade, Fleetwood, FY7 6HF (A/A)",Electricity
People and Places,Cultural and Related Services,Engie Power Limited,21/02/2023,PE147449,104.83,"1610004932427(01/01/23 to 31/01/23)King  Georges Field, Boradwater, Fleetwood Road, Fleetwood, Lancashire, FY7 8BD  (E/E)",Electricity
People and Places,Cultural and Related Services,Engie Power Limited,08/02/2023,PE146884,106.83,"1610004932427(01/12/22 to 31/12/22)King Georges Field, Boradwater, Fleetwood Road, Fleetwood, Lancashire, FY7 8BD (E/E)",Electricity
People and Places,Environmental Services,Engie Power Limited,21/02/2023,PE147461,241.50,"1630000584632(01/01/23 to 31/01/23)PC, rear  of Tesco, Rough Lea Rd, Thornton Cleveleys, FY5 1BW (E/E)",Gas
People and Places,Cultural and Related Services,Engie Power Limited,21/02/2023,PE147439,175.39,"1610004846390(01/01/23 to 31/01/23)Pump  House, Model Yacht Pond, Laidleys Walk, Fleetwood, FY7 7JL (A/A)",Electricity
People and Places,Cultural and Related Services,Engie Power Limited,21/02/2023,PE147448,213.28,"1610004897394(01/01/23 to 31/01/23)Bowls  House, Memorial Park, Fleetwood, FY7 7AE (A/A)",Electricity
People and Places,Cultural and Related Services,Engie Power Limited,21/02/2023,PE147450,532.09,"1610004897400(01/01/23 to 31/01/23)Ladies  Bowls Pavilion, Memorial Park, Fleetwood, FY7 7AE (E/E)",Electricity
People and Places,Cultural and Related Services,Engie Power Limited,21/02/2023,PE147455,292.33,"1610004897385(01/01/23 to 31/01/23)Tennis  Pavillion, Memorial Park, Fleetwood, FY7 7AE (E/E)",Electricity
People and Places,Cultural and Related Services,Engie Power Limited,21/02/2023,PE147456,445.55,"1610004867432(01/01/23 to 31/01/23)Mount  Hotel, Mount Rd, Fleetwood, FY7 6RA (E/E)",Electricity
People and Places,Cultural and Related Services,Engie Power Limited,21/02/2023,PE147457,195.83,"1610004867441(01/01/23 to 31/01/23)Mount  Hotel, Mount Rd, Fleetwood, FY7 6RA (E/E)",Electricity
People and Places,Cultural and Related Services,Engie Power Limited,21/02/2023,PE147452,195.71,"1610004867488(01/01/23 to 31/01/23)Mount  Pavilion, Mount Rd, Fleetwood, FY7 6EZ (E/E)",Electricity
People and Places,Environmental Services,Engie Power Limited,08/02/2023,PE146937,204.17,"1610004933625(02/10/22 to 31/10/22)Springfield Pumping Station 17, Fleetwood Road, Fleetwood, Lancashire, FY7 8TW (I/E)",Electricity
People and Places,Environmental Services,Engie Power Limited,08/02/2023,PE146938,225.06,"1610004933625(01/11/22 to 30/11/22)Springfield Pumping Station 17, Fleetwood Road, Fleetwood, Lancashire, FY7 8TW (E/E)",Electricity
People and Places,Environmental Services,Engie Power Limited,08/02/2023,PE146885,254.12,"1610004933625(01/12/22 to 31/12/22)Springfield Pumping Station 17, Fleeetwood Road, Fleetwood, Lancashire, FY7 8TW (E/E)",Electricity
People and Places,Environmental Services,Engie Power Limited,21/02/2023,PE147451,245.28,"1610004933625(01/01/23 to  31/01/23)Springfield Pumping Station 17, Fleeetwood Road, Fleetwood,  Lancashire, FY7 8TW (E/E)",Electricity
People and Places,Cultural and Related Services,Engie Power Limited,21/02/2023,PE147458,260.80,"1630000841586(01/01/23 to 31/01/23)Garstang  Tourist Info Ctr, Unit 1, Cherestanc Sq, Preston, PR3 1EF (E/A)",Electricity
Resources,Support Services,ESRI UK LTD,22/02/2023,RS147535,1055.00,ArcGIS Data Interoperability for Desktop(Concurrent Use) Primary Maintenance,Software Maintenance
Resources,Support Services,ESRI UK LTD,22/02/2023,RS147535,670.00,UK Data Loader Annual Subscription,Software Maintenance
Resources,Support Services,ESRI UK LTD,22/02/2023,RS147535,1055.00,ArcGIS Desktop Basic (Concurrent Use)Primary Maintenance,Software Maintenance
Resources,Support Services,ESRI UK LTD,22/02/2023,RS147535,3955.00,ArcGIS Desktop Basic (Concurrent Use)Secondary Maintenance,Software Maintenance
People and Places,Cultural and Related Services,EVOLUTION CONSTRUCTION GROUP LTD,07/02/2023,PE147099,88.03,Investigated issue with door and lock.  Concluded the barrel needed replacing.  Replaced with new,Responsive Building Maintenance
People and Places,Cultural and Related Services,EVOLUTION CONSTRUCTION GROUP LTD,07/02/2023,PE147103,58.64,Replaced door lock,Responsive Building Maintenance
People and Places,Cultural and Related Services,EVOLUTION CONSTRUCTION GROUP LTD,07/02/2023,PE147110,98.20,"Attended site, assessed situation, searched for leaks. Found 2 leaks and sealed",Responsive Building Maintenance
People and Places,Cultural and Related Services,EVOLUTION CONSTRUCTION GROUP LTD,07/02/2023,PE147095,240.50,"Fitted new glass, painted all putty with exterior paint",Responsive Building Maintenance
People and Places,Cultural and Related Services,EVOLUTION CONSTRUCTION GROUP LTD,07/02/2023,PE147104,156.25,Collected keys from Civic centre.  Changed the glass as required.  Checked the keys against keys held at Marine Hall and they don`t match.  Future window repairs to the cottages will require the keys from the Civic,Responsive Building Maintenance
People and Places,Support Services,EVOLUTION CONSTRUCTION GROUP LTD,07/02/2023,PE147118,111.97,Removed damaged boarding on the ceiling and replaced with new,Responsive Building Maintenance
People and Places,Support Services,EVOLUTION CONSTRUCTION GROUP LTD,07/02/2023,PE147115,24.55,reconnected and re-secured the rainwater downpipe to the wall,Responsive Building Maintenance
People and Places,Planning and Development Servs,EVOLUTION CONSTRUCTION GROUP LTD,07/02/2023,PE147109,24.55,Floor checked and thought not to be dangerous and that the issues can be corrected in the near future,Responsive Building Maintenance
People and Places,Planning and Development Servs,EVOLUTION CONSTRUCTION GROUP LTD,07/02/2023,PE147102,61.38,"Attended site, removed perspex screen, put back door on its tracks",Responsive Building Maintenance
People and Places,Planning and Development Servs,EVOLUTION CONSTRUCTION GROUP LTD,07/02/2023,PE147112,134.63,Spent a little time investigating the likely and probable causes of the leak.  Removed mastic where required from the likely area and silicon sealed,Responsive Building Maintenance
People and Places,Cultural and Related Services,EVOLUTION CONSTRUCTION GROUP LTD,07/02/2023,PE147119,24.55,Taken a look at the lock - couldn`t find any problem with it.  This same lock was replaced about 3 months ago,Responsive Building Maintenance
People and Places,Cultural and Related Services,EVOLUTION CONSTRUCTION GROUP LTD,08/02/2023,PE147117,56.45,Re-glazed window,Responsive Building Maintenance
People and Places,Environmental Services,EVOLUTION CONSTRUCTION GROUP LTD,08/02/2023,PE147097,49.10,Investigated the cause of the leak.  Applied sealants where suspect areas were to try and eliminate the problem,Responsive Building Maintenance
People and Places,Environmental Services,EVOLUTION CONSTRUCTION GROUP LTD,07/02/2023,PE147098,49.10,Re secure boards to wall and seal against weather,Responsive Building Maintenance
People and Places,Planning and Development Servs,EVOLUTION CONSTRUCTION GROUP LTD,08/02/2023,PE147116,49.10,Refitted upvc cladding to wall near kitchen of the studios after damage caused by adverse weather,Responsive Building Maintenance
People and Places,Cultural and Related Services,EVOLUTION CONSTRUCTION GROUP LTD,07/02/2023,PE147093,48.30,replaced hasp and staples and fitted suited padlocks,Responsive Building Maintenance
People and Places,Cultural and Related Services,EVOLUTION CONSTRUCTION GROUP LTD,07/02/2023,PE147107,194.81,Attended site.  Determined what repairs were needed and picked up required materials.  Spliced new timber into door frame.  Fitted a new door lock,Responsive Building Maintenance
People and Places,Planning and Development Servs,EVOLUTION CONSTRUCTION GROUP LTD,07/02/2023,PE147114,210.00,Fitted new external fire door and push fire escape bar.  Coated with primer ready for top coat of paint.  Applied further coat to the external door.  Final coat required as it`s patchy but rain prevented completion on same day.  Final coat on the door.,Responsive Building Maintenance
People and Places,Cultural and Related Services,EVOLUTION CONSTRUCTION GROUP LTD,07/02/2023,PE147120,98.20,Works Completed,Advertising - General
People and Places,Cultural and Related Services,EVOLUTION CONSTRUCTION GROUP LTD,07/02/2023,PE147122,110.48,Removed signs as requested and removed from site for disposal in the skip,Responsive Building Maintenance
People and Places,Cultural and Related Services,EVOLUTION CONSTRUCTION GROUP LTD,07/02/2023,PE147092,53.61,added new timber alongside the old timber to give new fixing points as the old timber is too rotten to take any fixings.  Refitted existing boards,Responsive Building Maintenance
People and Places,Cultural and Related Services,EVOLUTION CONSTRUCTION GROUP LTD,08/02/2023,PE147096,49.10,"Inspected doors and after speaking with Karen and Dan at Wyre maintenance mgt, it was concluded that they need to look further into if they or YMCA are responsible for the possibility of new doors instead of repairs to them",Responsive Building Maintenance
People and Places,Cultural and Related Services,EVOLUTION CONSTRUCTION GROUP LTD,07/02/2023,PE147100,36.83,Assessed and repaired damage caused to fire escape doors at Marine Hall,Responsive Building Maintenance
People and Places,Cultural and Related Services,EVOLUTION CONSTRUCTION GROUP LTD,07/02/2023,PE147101,64.04,"Attend site, picked up a door closer and installed",Responsive Building Maintenance
People and Places,Cultural and Related Services,EVOLUTION CONSTRUCTION GROUP LTD,07/02/2023,PE147106,48.31,Attended site.  Measured the lock.  Bought and fitted a new one,Responsive Building Maintenance
People and Places,Cultural and Related Services,EVOLUTION CONSTRUCTION GROUP LTD,07/02/2023,PE147094,24.55,"Investigate issue with the door.  The push bar and lock appear to be working properly. Couldn`t find any issues.  Door was operating as in normal use without problems today, however it`s possible that any fault maybe with the electronic entry system?",Responsive Building Maintenance
People and Places,Cultural and Related Services,EVOLUTION CONSTRUCTION GROUP LTD,07/02/2023,PE147121,49.10,Eased door so it works again,Responsive Building Maintenance
People and Places,Cultural and Related Services,EVOLUTION CONSTRUCTION GROUP LTD,07/02/2023,PE147113,129.95,Spliced new timber into the base of the frame to replace rotten timber.  Fitted new door threshold.  Re-secured panic bar to ensure correct operation,Responsive Building Maintenance
People and Places,Cultural and Related Services,EVOLUTION CONSTRUCTION GROUP LTD,07/02/2023,PE147111,24.55,investigated the possible causes of any potential leak.  No leak found as it had dried up from its initial appearance and no issues that indicate it`ll return at this time,Responsive Building Maintenance
People and Places,Cultural and Related Services,EVOLUTION CONSTRUCTION GROUP LTD,07/02/2023,PE147105,48.31,"Attended site, measured the lock, bought a replacement and fitted",Responsive Building Maintenance
People and Places,Planning and Development Servs,EVOLUTION CONSTRUCTION GROUP LTD,07/02/2023,PE147108,48.31,supplied new lock and fitted.  Keys left at estates team room 221 at Civic Centre,Responsive Building Maintenance
People and Places,"Cultural, Environ and Planning",F PARKINSON LTD,27/02/2023,PE147605,44324.96,"Appointment of Principal Contractor for PSDS (via SALIX Finance) works at Fleetwood Market, Adelaide Street, Fleetwood, Lancashire FY7 6AB. (Order No.4 of 4)",Contract (New CCR)
Resources,Planning and Development Servs,Fleetwood Festival Of Transport CIC,27/02/2023,RS147621,5000.00,Tram Sunday Fleetwood Festival of Transport,Project Costs
Resources,Support Services,Forbes Solicitors,23/02/2023,RS147561,1000.50,Legal fee - CL 21/12/22 - 29/01/23,Legal Fees
People and Places,Support Services,FR Sharrock LTD,27/02/2023,PE146941,260.21,Parts,Daywork Materials (Excl.Tyres)
People and Places,Support Services,FR Sharrock LTD,23/02/2023,PE146946,694.29,Flail kits,Daywork Materials (Excl.Tyres)
People and Places,Support Services,FR Sharrock LTD,27/02/2023,PE146941,260.22,Parts,Daywork Materials (Excl.Tyres)
People and Places,Support Services,FR Sharrock LTD,15/02/2023,PE146942,291.76,Parts,Daywork Materials (Excl.Tyres)
People and Places,Support Services,FR Sharrock LTD,15/02/2023,PE146942,291.77,Parts,Daywork Materials (Excl.Tyres)
People and Places,Support Services,FR Sharrock LTD,27/02/2023,PE146941,260.22,Parts,Daywork Materials (Excl.Tyres)
People and Places,Support Services,FR Sharrock LTD,23/02/2023,PE146946,694.29,Flail kits,Daywork Materials (Excl.Tyres)
People and Places,Support Services,FR Sharrock LTD,27/02/2023,PE146941,260.22,Parts,Daywork Materials (Excl.Tyres)
People and Places,Support Services,FR Sharrock LTD,15/02/2023,PE146942,291.76,Parts,Daywork Materials (Excl.Tyres)
People and Places,Support Services,FR Sharrock LTD,23/02/2023,PE146946,694.29,Flail kits,Daywork Materials (Excl.Tyres)
People and Places,Support Services,FR Sharrock LTD,17/02/2023,PE147352,537.63,payment of invoice 113468 = various items,Daywork Materials (Excl.Tyres)
People and Places,Support Services,FR Sharrock LTD,16/02/2023,PE146940,464.15,Parts,Daywork Materials (Excl.Tyres)
Resources,Central Services to the Public,Fylde Coast YMCA,09/02/2023,RS147228,13011.00,Warm Hub Contribution - Household Support Round 3,Household Support Fund
People and Places,Cultural and Related Services,Fylde Coast YMCA,03/02/2023,PE147040,4210.00,"YMCA FLEETWOODPLACES40 places per day x 4 days =160Fee?STAFF/VENUEVenue / Staffing / Equipment - 4,903.00 (based upon easter22)FOOD 40 places x 4days = 880TOTAL COST = 5783 for each 4 day week? (places based on summer)",External Coaching
People and Places,Cultural and Related Services,Fylde Coast YMCA,03/02/2023,PE147041,4275.00,THORNTON YMCAPLACES40 places per day x 4 = 160VENUE/STAFFING/EQUIPMENTBased upon Easter = 4903.00FOOD40 Places x 4 = 880GRAND TOPTA = 5783.00,External Coaching
Resources,Support Services,G2V Recruitment Group Ltd T/A G2 Recruitment Solu,06/02/2023,RS146924,1567.50,Payment of invoice NO115810 - MR G Ivett - Period End 22/01/2023,Agency Staff
Resources,Support Services,G2V Recruitment Group Ltd T/A G2 Recruitment Solu,09/02/2023,RS147032,1626.95,Payment of invoice NO 116201  G Ivett Period End 29/01/23,Agency Staff
Resources,Support Services,G2V Recruitment Group Ltd T/A G2 Recruitment Solu,13/02/2023,RS147308,1667.10,Payment of invoice. MR G Ivett Period End 5/2/23,Agency Staff
People and Places,Cultural and Related Services,Gambolling Arena Theatre Company,27/02/2023,PE147618,1600.00,"THE MAGICAL WORLD OF ROALD DAHL on Thursday 16th February at St.Michael`s Village Hall x 2 showsand Friday 17th February at Pilling Village hall x 2 shows . Cost 1,600",Creative People and Places Contribution
People and Places,Planning and Development Servs,GARRY CARR BUILDING SERVICES LTD,14/02/2023,PE147343,120.00,Fleetwood Market: Remove safe from old cash office to new office,Maintenance of Tools or Equipment
People and Places,Cultural and Related Services,GARRY CARR BUILDING SERVICES LTD,02/02/2023,PE146996,40.00,Marine Hall: renove graffiti from grey doors,Responsive Building Maintenance
People and Places,Cultural and Related Services,GARRY CARR BUILDING SERVICES LTD,02/02/2023,PE146994,516.00,Marine Hall: Replace flooring between dressing room and stage. Replace vinyl on the steps wither side of stage,Responsive Building Maintenance
People and Places,Cultural and Related Services,GARRY CARR BUILDING SERVICES LTD,13/02/2023,PE147211,134.00,"Marsh Mill: Clean up of the cap, re-connection of hose to water barrel.  Turn sails for electrician to find power fault.  Change access padlock for cap.",Responsive Building Maintenance
People and Places,Planning and Development Servs,GARRY CARR BUILDING SERVICES LTD,02/02/2023,PE146995,325.00,Copse Rd Depot: Replace entrance matting and carpet repairs to x no. offices,Responsive Building Maintenance
People and Places,Environmental Services,GARRY CARR BUILDING SERVICES LTD,06/02/2023,PE147083,215.00,works carried out at Fleetwood cemetery for a  bricked grave at a cost of 215.00 plus vat,Special Works
People and Places,Environmental Services,George Hewitt Fabrications,23/02/2023,PE147543,2600.00,To Supply:1 New Stainless Steel Barrier / Reference Quotgeation dated 11/11/2022,Materials and Consumables
People and Places,Highways,Glasdon UK LTD,09/02/2023,PE147227,535.37,"Supply one black phoenix memorial bench with plaque.Plaque inscription to read In Memory of Tom Pye 16.04.34 ? 04.05.2003and Margaret Pye 06.01.36 ? 26.10.2022Together ForeverPlease deliver bench to Copse Road Depot, Copse Road, Fleetwood.",Seats and Shelters (Non BM)
People and Places,Cultural and Related Services,GLK Promotions,15/02/2023,PE147367,3715.36,Final settlement for performance at Marine Hall - 28/1/23 Double Trouble,Refund of Ticket Sales to Ext Promoters
People and Places,"Cultural, Environ and Planning",Halcrow Group LTD,13/02/2023,PE147305,1002.84,Additional works to provide information to support the planning and Marine License applications requested by the statutory consultees.Approved by Carl Green,Consultants Fees (New CCR)
People and Places,Cultural and Related Services,Healthy Heads Education Ltd,10/02/2023,PE147301,1667.00,"PASTA programme delivery in Wyre for 2022/23. 1,667 per 6 week course. Delivery at Larkholme and Chaucer primary schools.",Weight Management Programme
People and Places,Central Services to the Public,Hesketh Press LTD,13/02/2023,PE147297,630.00,Warm Spaces banner and posters,Household Support Fund
People and Places,Central Services to the Public,Hesketh Press LTD,13/02/2023,PE147296,190.00,Warm spaces A5 leaflets,Household Support Fund
Resources,Housing General Fund,Huck Properties LTD,27/02/2023,RS147620,1410.00,REDACT,Minor Adaptations
Resources,Housing General Fund,Huck Properties LTD,21/02/2023,RS147523,690.00,REDACT,Minor Adaptations
People and Places,Support Services,Idox Software LTD,16/02/2023,PE147403,2100.00,Professional Services: EDMS Training ? System Implementation &  Admin ? 2 days ? General User ? 0.5 days ? Standard Scanning &  Indexing ? 0.5 days,Training - Non HR Controlled
People and Places,Support Services,Idox Software LTD,16/02/2023,PE147403,500.00,Software:  EDMS Category pack for Licensing  Software Term Licence subscription (3 years),Software Maintenance
People and Places,Support Services,Idox Software LTD,16/02/2023,PE147403,75.00,Software: x1 additional Redact Licence  Software Term Licence subscription  (3 years),Software Maintenance
People and Places,Support Services,Idox Software LTD,16/02/2023,PE147403,525.00,Professional Services: EDMS Category Pack - Services to  install,Software Maintenance
People and Places,Support Services,Idox Software LTD,16/02/2023,PE147403,1050.00,Professional Services: Project Management X 2 @ 1050 each unit,Software Maintenance
People and Places,Support Services,Idox Software LTD,16/02/2023,PE147403,2450.00,Professional Services: Uniform Training ? Uniform Licensing Module ? 2  days ? Introduction to Uniform with  Spatial ? 1 days ? Public Access Overview ? 1  day,Training - Non HR Controlled
Resources,Housing General Fund,J A DICKENS LIMITED,23/02/2023,RS147556,130.00,REDACT,Minor Adaptations
Resources,Housing General Fund,J A DICKENS LIMITED,23/02/2023,RS147556,178.00,REDACT,Minor Adaptations
Resources,Housing General Fund,J A DICKENS LIMITED,23/02/2023,RS147551,64.00,REDACT,Minor Adaptations
Resources,Housing General Fund,J A DICKENS LIMITED,23/02/2023,RS147551,90.00,REDACT,Minor Adaptations
Resources,Housing General Fund,J A DICKENS LIMITED,23/02/2023,RS147552,108.00,REDACT,Minor Adaptations
Resources,Housing General Fund,J A DICKENS LIMITED,23/02/2023,RS147552,200.00,REDACT,Minor Adaptations
Resources,Housing General Fund,J A DICKENS LIMITED,23/02/2023,RS147553,350.00,REDACT,Minor Adaptations
Resources,Housing General Fund,J A DICKENS LIMITED,24/02/2023,RS147564,128.00,REDACT,Minor Adaptations
Resources,Housing General Fund,J A DICKENS LIMITED,24/02/2023,RS147564,180.00,REDACT,Minor Adaptations
Resources,Housing General Fund,J A DICKENS LIMITED,24/02/2023,RS147563,200.00,REDACT,Minor Adaptations
Resources,Housing General Fund,J A DICKENS LIMITED,24/02/2023,RS147563,241.00,REDACT,Minor Adaptations
Resources,Housing General Fund,J A DICKENS LIMITED,03/02/2023,RS147058,220.00,REDACT,Minor Adaptations
Resources,Housing General Fund,J A DICKENS LIMITED,03/02/2023,RS147058,221.00,REDACT,Minor Adaptations
Resources,Housing General Fund,J A DICKENS LIMITED,03/02/2023,RS147053,53.00,REDACT,Minor Adaptations
Resources,Housing General Fund,J A DICKENS LIMITED,03/02/2023,RS147053,80.00,REDACT,Minor Adaptations
Resources,Housing General Fund,J A DICKENS LIMITED,03/02/2023,RS147052,53.00,REDACT,Minor Adaptations
Resources,Housing General Fund,J A DICKENS LIMITED,03/02/2023,RS147052,80.00,REDACT,Minor Adaptations
Resources,Housing General Fund,J A DICKENS LIMITED,03/02/2023,RS147054,53.00,REDACT,Minor Adaptations
Resources,Housing General Fund,J A DICKENS LIMITED,03/02/2023,RS147054,80.00,REDACT,Minor Adaptations
Resources,Housing General Fund,J A DICKENS LIMITED,03/02/2023,RS147055,60.00,REDACT,Minor Adaptations
Resources,Housing General Fund,J A DICKENS LIMITED,03/02/2023,RS147055,94.00,REDACT,Minor Adaptations
Resources,Housing General Fund,J A DICKENS LIMITED,03/02/2023,RS147056,100.00,REDACT,Minor Adaptations
Resources,Housing General Fund,J A DICKENS LIMITED,03/02/2023,RS147056,187.00,REDACT,Minor Adaptations
Resources,Housing General Fund,J A DICKENS LIMITED,03/02/2023,RS147057,118.00,REDACT,Minor Adaptations
Resources,Housing General Fund,J A DICKENS LIMITED,03/02/2023,RS147057,190.00,REDACT,Minor Adaptations
Resources,Housing General Fund,J A DICKENS LIMITED,23/02/2023,RS147553,340.00,REDACT,Minor Adaptations
Resources,Housing General Fund,J A DICKENS LIMITED,23/02/2023,RS147554,450.00,REDACT,Minor Adaptations
Resources,Housing General Fund,J A DICKENS LIMITED,23/02/2023,RS147554,440.00,REDACT,Minor Adaptations
Resources,Housing General Fund,J A DICKENS LIMITED,23/02/2023,RS147555,64.00,REDACT,Minor Adaptations
Resources,Housing General Fund,J A DICKENS LIMITED,23/02/2023,RS147555,90.00,REDACT,Minor Adaptations
Resources,Housing General Fund,James Andrews Recruitment Solutions Ltd,24/02/2023,RS147582,1251.00,"19/02/2023 - Kieron Donaldson, PO-008124",Agency Staff
Resources,Housing General Fund,James Andrews Recruitment Solutions Ltd,24/02/2023,RS147405,1296.00,"Kieron Donaldson, PO - 008124 - 12.02.23",Agency Staff
Resources,Housing General Fund,James Andrews Recruitment Solutions Ltd,03/02/2023,RS147036,1305.00,29/01/2023 - Kieron Donaldson,Agency Staff
Resources,Housing General Fund,James Andrews Recruitment Solutions Ltd,13/02/2023,RS147309,1296.00,05/02/23 / PO-008124,Agency Staff
People and Places,Cultural and Related Services,JANINE WALKER ART,08/02/2023,PE147212,675.00,Fee for 3 X Art Buffet sessions at Market House Studios = 225 per sessionTotal payable = 675,Project Costs
People and Places,Cultural and Related Services,John Carney,07/02/2023,PE147127,160.00,Cleaning off all debris to roof at central car park - kite shop,Responsive Building Maintenance
People and Places,Cultural and Related Services,John Carney,07/02/2023,PE147123,80.00,Carrying out slate repairs to roof at Mount Cottages,Responsive Building Maintenance
People and Places,Cultural and Related Services,John Carney,16/02/2023,PE147407,120.00,Memorial Park Ladies Bowling Club: Carry out minor roofing works to stop water ingress,Responsive Building Maintenance
People and Places,Support Services,John Carney,16/02/2023,PE147406,1200.00,"Civic Centre Room 104: Carrying out all roofing works to above main roof.  Stripping out tiles to valley, stacking for re-use.  Supply and fix new code 4 8"" lead to valley that was damaged beyond repair. Put back tiles. Supply and fix tiles where needed",Responsive Building Maintenance
People and Places,Cultural and Related Services,John Carney,16/02/2023,PE147408,350.00,"Cottam Hall: Supply and fix missing broken tiles to all areas of roof, clearing away all debris.",Responsive Building Maintenance
People and Places,Cultural and Related Services,John Carney,07/02/2023,PE147126,110.00,Carrying out minor repairs to roof at swimming club reception enterance,Responsive Building Maintenance
People and Places,Cultural and Related Services,John Carney,07/02/2023,PE147124,140.00,Carrying out emergency repairs to spectator area at Civic to stop water ingress,Responsive Building Maintenance
People and Places,Cultural and Related Services,John Carney,07/02/2023,PE147125,130.00,Caarrying out repairs to dome roof to stop leaking,Responsive Building Maintenance
Resources,Support Services,Karen Openshaw Consultancy,02/02/2023,RS147019,645.00,To provision of Listening Ear and Mindfulness sessions 1 Apr 2022 - 31 March 2023,Occupational Health Fees
People and Places,Environmental Services,Keep Britain Tidy,16/02/2023,PE147414,995.00,Essetnial membership of KBT subscription for 2022/2023,Street Cleansing Projects
Resources,Support Services,Key Engineering & Hygiene Supplies LTD,27/02/2023,RS147501,14.94,LIQUID SPRAY POLISH 750ML,Cleaning Materials
Resources,Support Services,Key Engineering & Hygiene Supplies LTD,27/02/2023,RS147501,7.52,E- Pine disinfectant 5 Litre,Cleaning Materials
Resources,Support Services,Key Engineering & Hygiene Supplies LTD,27/02/2023,RS147085,147.30,1 PLY BLUE INTERFOLD 3600 SHEETS,Cleaning Materials
Resources,Support Services,Key Engineering & Hygiene Supplies LTD,27/02/2023,RS147085,127.50,WHITE 2PLY LUXURY TOILET ROLL 320 40 PER PACK,Cleaning Materials
People and Places,Environmental Services,Key Engineering & Hygiene Supplies LTD,23/02/2023,PE147540,883.00,"URGENT SUPPLY50 boxes of Blue refuse sacks, code BL09OCI, 18x29x39 @ 17.66 per box of 200","Provision of Bins, Boxes and Sacks"
People and Places,Environmental Services,Key Engineering & Hygiene Supplies LTD,23/02/2023,PE147540,374.00,"20 boxes of Heavy Duty Black refuse sacks, code BK090B1. 18x29x39, 90 ltr, 200 per box","Provision of Bins, Boxes and Sacks"
People and Places,Environmental Services,Key Engineering & Hygiene Supplies LTD,23/02/2023,PE147540,386.00,"20 Green refuse sacks, code GN090C1, 18x29x39, 90 ltr, per 200 per box Delivery to Wyre Council, Copse Road Depot, Copse Road, Fleetwood, FY7 6RP","Provision of Bins, Boxes and Sacks"
People and Places,Cultural and Related Services,Key Engineering & Hygiene Supplies LTD,16/02/2023,PE147413,19.71,BLUE 1 PLY C FOLD HAND TOWEL 23 X 31CM,Cleaning Materials
People and Places,Cultural and Related Services,Key Engineering & Hygiene Supplies LTD,16/02/2023,PE147413,28.26,BLUE 2 PLY CENTREFEED ROLL 150M X 180MM 410 SHEETS,Cleaning Materials
People and Places,Planning and Development Servs,Key Engineering & Hygiene Supplies LTD,20/02/2023,PE146293,216.60,2PLY WHITE JUMBO TOILET ROLL,Cleaning Materials
People and Places,Environmental Services,Key Engineering & Hygiene Supplies LTD,01/02/2023,PE146999,44.40,Clothing as per quote 16483,Protective Clothing
People and Places,Environmental Services,Key Engineering & Hygiene Supplies LTD,07/02/2023,PE147061,299.95,"Supply as per quotation 17428 plus the additional items 1 - S460YERXXXL Traffic Jacket plus wyre logo front and rear 24.85Delivery to Wyre Council, Copse Road Depot, Copse Road, Fleetwood, FY7 6RP",Protective Clothing
People and Places,Support Services,Key Engineering & Hygiene Supplies LTD,01/02/2023,PE146999,44.40,Clothing as per quote 16483,Protective Clothing
People and Places,Support Services,Key Engineering & Hygiene Supplies LTD,07/02/2023,PE147061,299.95,"Supply as per quotation 17428 plus the additional items 1 - S460YERXXXL Traffic Jacket plus wyre logo front and rear 24.85Delivery to Wyre Council, Copse Road Depot, Copse Road, Fleetwood, FY7 6RP",Protective Clothing
People and Places,Support Services,Key Engineering & Hygiene Supplies LTD,16/02/2023,PE147223,20.52,"Suppy as per quote 17608 Portwest bump caps  Delivery to Wyre Council, Civic Centre, Breck Road, Poulton-le-Fylde, FY6 7PU - FAO John Bettle",Protective Clothing
People and Places,Environmental Services,Killgerm Chemicals LTD,03/02/2023,PE147031,78.00,FLEATEC600M - Flea Spray,Protective Clothing
People and Places,Environmental Services,Killgerm Chemicals LTD,03/02/2023,PE147031,51.30,TYVEK OVER BOOT - pack of 20,Protective Clothing
People and Places,Environmental Services,Killgerm Chemicals LTD,03/02/2023,PE147031,100.80,AFRATBOX - AF Rat Box,Materials and Consumables
People and Places,Environmental Services,Killgerm Chemicals LTD,03/02/2023,PE147031,8.00,TRAYNO2SO - Small Oblong Red Tray,Materials and Consumables
People and Places,Environmental Services,Killgerm Chemicals LTD,03/02/2023,PE147031,8.91,LABELDP1 - Danger Poison Label,Materials and Consumables
People and Places,Environmental Services,Killgerm Chemicals LTD,03/02/2023,PE147031,6.73,LABELP1 - Rodent Poison Label,Materials and Consumables
People and Places,Environmental Services,Killgerm Chemicals LTD,03/02/2023,PE147031,4.41,BAITSTATWARN - Bait Station Warning Stickers,Materials and Consumables
People and Places,Environmental Services,Killgerm Chemicals LTD,03/02/2023,PE146972,276.00,SOREXAD010K - Sorexa D Mouse Bait 10kg,Materials and Consumables
People and Places,Environmental Services,Killgerm Chemicals LTD,03/02/2023,PE147031,15.12,GORILLAPK100-WCOFFER2022 - Gorilla Hand Wipes - 2 x pack of 4,Materials and Consumables
People and Places,Environmental Services,Killgerm Chemicals LTD,03/02/2023,PE147031,53.64,3MRESP - 3M 4255 Respirator,Materials and Consumables
People and Places,Environmental Services,Killgerm Chemicals LTD,03/02/2023,PE147031,88.88,CONTRA008K - Contrac All Weather Blox,Materials and Consumables
People and Places,Environmental Services,Killgerm Chemicals LTD,03/02/2023,PE147031,28.35,ADV100BLA - AF Mouse Box,Materials and Consumables
People and Places,Environmental Services,Killgerm Chemicals LTD,27/02/2023,PE147224,32.76,6 tubs Gorilla wipes as top up to PEO0025247,Materials and Consumables
People and Places,Support Services,Kompan  LTD,20/02/2023,PE147495,4.00,A10086-06 DO-NUT BASE TROPIC BLACK,Playground Equipment
People and Places,Support Services,Kompan  LTD,20/02/2023,PE147495,82.99,Delivery,Playground Equipment
People and Places,Support Services,Kompan  LTD,20/02/2023,PE147495,1.40,210100408040 SLHC SCR M8X40 A2-70 DELTA,Playground Equipment
People and Places,Support Services,Kompan  LTD,20/02/2023,PE147495,2.70,"A380021-06 POST CAP BASE FOR STEEL POST 101,6 RAL9005 /ECO_CZ_349/",Playground Equipment
People and Places,Support Services,Kompan  LTD,20/02/2023,PE147495,0.30,321300708020 WASHER 8.4X20.2X2MM A2,Playground Equipment
People and Places,Support Services,Kompan  LTD,20/02/2023,PE147495,0.10,331201408 PTHL NUT M8 FZB DIN985 ST 8,Playground Equipment
People and Places,Support Services,Kompan  LTD,20/02/2023,PE147495,0.60,A380024-06 O RING 75X3 NBR70,Playground Equipment
People and Places,Support Services,Kompan  LTD,20/02/2023,PE147495,188.00,A92011-06 SWING HANGER BLACK 03 007T,Playground Equipment
People and Places,Support Services,Kompan  LTD,20/02/2023,PE147495,1.00,A400592-113 TOP FOR CAP POST GREY,Playground Equipment
People and Places,Support Services,Kompan  LTD,20/02/2023,PE147495,4.00,701528 FLT.WASH 28X15X2.5 A2 DIN125A,Playground Equipment
People and Places,Support Services,Kompan  LTD,20/02/2023,PE147495,5.60,210085 MB M10X85 DELTA DIN931,Playground Equipment
People and Places,Support Services,Kompan  LTD,20/02/2023,PE147495,2.40,400210 PTHL NUT M10 ACC DRW DELTA DT22 BLACK,Playground Equipment
People and Places,Support Services,Kompan  LTD,20/02/2023,PE147495,2.40,A10085-06 DO-NUT TOP BLACK,Playground Equipment
People and Places,Support Services,Kompan  LTD,20/02/2023,PE147495,5.20,A92016-56 SPECIAL TOOL FOR NUT,Playground Equipment
People and Places,Support Services,Kompan  LTD,20/02/2023,PE147495,402.00,Spare parts as per quotation SQ277738A380032-99-Q10 PANEL CONNECTOR W/T-NUT 10 PCS,Playground Equipment
People and Places,Support Services,Kompan  LTD,20/02/2023,PE147495,40.00,250100408040-Q20 SLHC SCR M8X40 A2 DELTA 20 PCS W. THREAD LOCK ACC DRW/_DK_558,Playground Equipment
People and Places,Support Services,Kompan  LTD,20/02/2023,PE147495,26.00,A380033-113 COVER PANEL CONNECTOR  ANTRAZIT GREY RAL7016,Playground Equipment
People and Places,Support Services,Kompan  LTD,20/02/2023,PE147495,4.30,A380020-113 POST CAP STEEL TOP,Playground Equipment
People and Places,Support Services,Kompan  LTD,20/02/2023,PE147495,1.60,A380023-140 POST CAP STEEL RING,Playground Equipment
Resources,Planning and Development Servs,Konica Minolta Business Solutions UK LTD,02/02/2023,RS146950,6.17,Fleetwood Market - 1840080773,Hire of Tools or Equipment
Resources,Support Services,Konica Minolta Business Solutions UK LTD,20/02/2023,RS147498,944.43,Copy and print charges Equipment number: 26/02/2022-25/02/2023182585650318258564871825843155182585649318258564551825856489182585649018258431571825856492182586326718258564911825856452,Hire of Tools or Equipment
Resources,Central Services to the Public,Lancashire County Council,08/02/2023,RS147203,416.00,Wyre Council Con29 Searches for December 2022 - 26 @ 16.00 each,L.C.C. Search Fees
Resources,"Cultural, Environ and Planning",Lancashire County Council,22/02/2023,RS147529,1482.62,"FAO David Grassie Lancashire County Council Street Lighting.   Wyre Beach Management Scheme - Carry out street lighting diversionary work at Cleveleys North Promenade as per your email revised quote 26th July 2022.   Total 1,482.62",Consultants Fees (New CCR)
People and Places,Environmental Services,Lancashire County Council,27/02/2023,PE147558,150.00,Testing of food complaint samples - 22011858-SR22/01232-Chicken Fried Rice - 5/12/22,Food and Drug Etc Samples
People and Places,Support Services,Lancashire DAF,02/02/2023,PE146929,91.00,MOT 19/1/23,Licences/MOT Certificates
People and Places,Support Services,Lancashire DAF,02/02/2023,PE146929,45.00,MOT lane fee,Licences/MOT Certificates
People and Places,Support Services,Lancashire DAF,07/02/2023,PE146860,272.17,1 x 14c02c safety valve,Daywork Materials (Excl.Tyres)
People and Places,Support Services,Lancashire DAF,27/02/2023,PE147580,195.00,LH Window Regulator,Daywork Materials (Excl.Tyres)
People and Places,Environmental Services,Lancashire DAF,23/02/2023,PE146430,1181.22,Spring brakes,Daywork Materials (Excl.Tyres)
People and Places,Environmental Services,LK Consult Limited,14/02/2023,PE147344,5515.00,"Phase 2 Works for King Georges Pavillion, Fleetwood",Consultants Fees
Resources,"Cultural, Environ and Planning",Lucy Moss,23/02/2023,RS147557,12881.15,HSHAZ Grant: 19-23 Adelaide St,Grants and Advances
Resources,"Cultural, Environ and Planning",Lucy Moss,01/02/2023,RS146986,15131.67,"Fleetwood HSHAZ Grant: 19-23 Adelaide St, Fleetwood",Grants and Advances
Resources,"Cultural, Environ and Planning",Lucy Moss,06/02/2023,RS147075,2063.40,Fleetwood HSHAZ Grant: 19-23 Adelaide St,Grants and Advances
People and Places,Cultural and Related Services,M D Security,20/02/2023,PE147364,613.00,Rossall Point: Supply and install 1 x smoke sensor in bird watch room.  Replaced 1 x faulty emergency light fitting on stairs adjacent to bird watch room. Replaced 1 x external light fitting with emergency light fitting. Replaced 2 x 3.2AH batteries,Alarm Systems and Security - Responsive
People and Places,Cultural and Related Services,M D Security,15/02/2023,PE147366,440.00,"Riverside Room and Rangers Office, Stannah: Fitted 2 x emergency lights in break out room and rangers office.  Replaces 2 x faulty fittings in hall and big room",Alarm Systems and Security - Annual
People and Places,Cultural and Related Services,M D Security,15/02/2023,PE147365,50.00,"Mount Pavilion: Replaced 1 x battery on main front foor, tested and left working",Alarm Systems and Security - Annual
Resources,Housing General Fund,M J Wilkinson,15/02/2023,RS147355,650.00,"4 North Albion St Rent, rent and council tax.",Private Contractors
Resources,Housing General Fund,M J Wilkinson,15/02/2023,RS147356,881.80,"4 North Albion St Rent, rent and council tax.",Private Contractors
Resources,Housing General Fund,M J Wilkinson,15/02/2023,RS147357,767.80,"4 North Albion St Rent, rent and council tax.",Private Contractors
People and Places,"Cultural, Environ and Planning",Marine Management Organisation,15/02/2023,PE147387,5364.00,Band 3 licence,Contract (New CCR)
People and Places,Cultural and Related Services,Marketing Lancashire,02/02/2023,PE147021,4500.00,Marketing Lancashire 2022/23 contribution,Corporate and Professional Subscriptions
Resources,Support Services,MBL (Seminars) LTD,15/02/2023,RS147316,590.00,Season ticket - MBL Seminars,Technical Training
People and Places,Cultural and Related Services,McGann Boxing and Fitness,03/02/2023,PE147033,810.00,MCGANN BOXING - CHRISTMAS HAF CLUBPLACES15 places per day x 4 = 60 x 20.00 = 60= 1200PROVISION/STAFF3 staff x 6.83ph x 6hrs x 4 days = 491.761 staff x 10.00 x 6 hrs x 4 days = 240Total = 731.76 FOOD5.00 per head x 15 x 4 days,External Coaching
Resources,Support Services,Michael Page International Recruitment Limited,20/02/2023,RS147487,2500.00,Appointment of Interim Asset Manager,Agency Staff
Resources,Support Services,Michael Page International Recruitment Limited,13/02/2023,RS147318,2500.00,Appointment of Interim Asset Manager,Agency Staff
Resources,Support Services,Michael Page International Recruitment Limited,02/02/2023,RS147029,2500.00,Appointment of Interim Asset Manager,Agency Staff
Resources,Support Services,Michael Page International Recruitment Limited,22/02/2023,RS147538,2500.00,Appointment of Interim Asset Manager,Agency Staff
Resources,Support Services,Michael Page International Recruitment Limited,09/02/2023,RS147251,202.40,Paul Cooper - 2 days per week for 6 months plus travel expenses. See ODR dated 29/07/22,Agency Staff
Resources,Support Services,Michael Page International Recruitment Limited,09/02/2023,RS147250,2674.44,Paul Cooper - 2 days per week for 6 months plus travel expenses. See ODR dated 29/07/22,Agency Staff
People and Places,Cultural and Related Services,Myerscough College,09/02/2023,PE147249,560.00,Train the trainer course,Training - Non HR Controlled
People and Places,Cultural and Related Services,Myerscough College,01/02/2023,PE146989,560.00,train the trainer course,Training - Non HR Controlled
People and Places,Cultural and Related Services,Myerscough College,09/02/2023,PE147248,-560.00,re:PE1469889 train the trainer course,Training - Non HR Controlled
People and Places,Environmental Services,N Power LTD,10/02/2023,PE147137,2.70,"1630000862336 Unmetered supply, cctv Cameras 01/01/23 to 31/01/23",CCTV Running Costs
People and Places,Environmental Services,N Power LTD,10/02/2023,PE147137,84.02,"1630000862336 Unmetered supply, cctv Cameras 01/01/23 to 31/01/23",CCTV Running Costs
People and Places,Environmental Services,N Power LTD,08/02/2023,PE147139,0.36,"1610036002855 Unmetered Supply Civic Centre, Breck Rd, Poulton Le Fylde, FY6 7PU, 01/01/23 to 31/01/23",Electricity
People and Places,Environmental Services,N Power LTD,08/02/2023,PE147138,241.86,,Electricity
People and Places,Parking Services,N Power LTD,08/02/2023,PE147140,320.34,1620000821031Unmetered Supply Lighting Civic Centre Breck Road Poulton Le Fylde FY6 7PU 01/01/23 to 31/01/23,Electricity
People and Places,Parking Services,N Power LTD,08/02/2023,PE147138,1356.39,,Electricity
People and Places,Parking Services,N Power LTD,08/02/2023,PE147139,1.92,"1610036002855 Unmetered Supply Civic Centre, Breck Rd, Poulton Le Fylde, FY6 7PU, 01/01/23 to 31/01/23",Electricity
People and Places,Parking Services,N Power LTD,08/02/2023,PE147139,0.08,"1610036002855 Unmetered Supply Civic Centre, Breck Rd, Poulton Le Fylde, FY6 7PU, 01/01/23 to 31/01/23",Electricity
People and Places,Environmental Services,N Power LTD,10/02/2023,PE147137,7.72,"1630000862336 Unmetered supply, cctv Cameras 01/01/23 to 31/01/23",CCTV Running Costs
People and Places,Environmental Services,N Power LTD,10/02/2023,PE147137,2.70,"1630000862336 Unmetered supply, cctv Cameras 01/01/23 to 31/01/23",CCTV Running Costs
People and Places,Environmental Services,N Power LTD,10/02/2023,PE147137,55.39,"1630000862336 Unmetered supply, cctv Cameras 01/01/23 to 31/01/23",CCTV Running Costs
People and Places,Planning and Development Servs,National World Publishing Ltd,15/02/2023,PE147374,1049.85,Wyre local plan update Garstang Courier and Blackpool Gazette 08/02/23,Advertising - General
People and Places,Environmental Services,National World Publishing Ltd,27/02/2023,PE147610,246.56,Advert Ref No:  NMC6227759,Advertising - Statutory Notices
People and Places,Planning and Development Servs,National World Publishing Ltd,15/02/2023,PE147375,416.07,Press notice for Garstang Courier and Blackpool Gazette 08/02/23,Advertising - Statutory Notices
People and Places,Planning and Development Servs,National World Publishing Ltd,20/02/2023,PE147482,462.30,Press notice for Garstang Courier and Blackpool Weekly News 15/02/23,Advertising - Statutory Notices
Finance,Corporate and Democratic Core,NATWEST BANK,02/02/2023,WPST00094851,773.92,Natwest 30DEC GRP 99795000,Bank Charges
Finance,Corporate and Democratic Core,NATWEST BANK,27/02/2023,WPST00097706,5139.54,Worldpay Invoice 212630652,Bank Charges
Finance,Corporate and Democratic Core,NATWEST BANK,27/02/2023,WPST00097708,3284.80,Worldpay Invoice 212625567,Bank Charges
Finance,Corporate and Democratic Core,NATWEST BANK,27/02/2023,WPST00097697,608.30,Worldpay Invoice 203919937,Bank Charges
Finance,Corporate and Democratic Core,NATWEST BANK,23/02/2023,WPST00097321,3155.52,Worldpay Invoice 242404592,Bank Charges
Finance,Corporate and Democratic Core,NATWEST BANK,23/02/2023,WPST00097323,4261.55,Worldpay Invoice 242336014,Bank Charges
Resources,Housing General Fund,NEC Software Solutions UK Limited,09/02/2023,RS147235,950.00,SUPPLIER REFERENCE:CRM 138436Supplier Software:AOB Spreadsheet for ESA/JSA and IS (2021) ? REC318,Purchase of Tools or Equipment
Resources,Support Services,NEC Software Solutions UK Limited,24/02/2023,RS147583,300.00,"Benefits Subsidy Seminar Booking Form - 202315/3/23Online sessiona) Name: Richard Southallb) Office Address (including postcode): Civic Centre, Breck Road, Poulton-le-Fylde, FY6 7PUc) Telephone No: (01253) 887573d) Email address: Richard.sout",Training - Non HR Controlled
People and Places,Environmental Services,Newauto Limited T/A Mogo,01/02/2023,PE146985,74.00,WP-1 WINDSCREEN POUCH 160 x 130mm,Materials and Consumables
People and Places,Environmental Services,Newauto Limited T/A Mogo,01/02/2023,PE146985,50.00,SSP-SS-C-3 Internal Pouch Single Sided Clear 152x119mm,Materials and Consumables
People and Places,Environmental Services,Newauto Limited T/A Mogo,01/02/2023,PE146985,189.00,MP-2-TX Printed Plate (240mm x 176mm) - Hackney Carriage Rear,Materials and Consumables
People and Places,Environmental Services,Newauto Limited T/A Mogo,01/02/2023,PE146985,189.00,MP-2-STX Printed Plate (240mm x 125mm) - Hackney Carriage Front,Materials and Consumables
People and Places,Environmental Services,Newauto Limited T/A Mogo,01/02/2023,PE146985,58.00,IP-3-D INTERNAL PLATE TO FIT SELF SEAL POUCH - A4 Tear Out Plate - Hackney Carriage,Materials and Consumables
People and Places,Environmental Services,Newauto Limited T/A Mogo,01/02/2023,PE146985,58.00,IP-3-D INTERNAL PLATE TO FIT SELF SEAL POUCH - A4 Tear Out Plate - Private Hire,Materials and Consumables
People and Places,Environmental Services,Newauto Limited T/A Mogo,01/02/2023,PE146985,189.00,MP-2-STX Printed Plate (240mm x 125mm) - Private Hire Front,Materials and Consumables
People and Places,Environmental Services,Newauto Limited T/A Mogo,01/02/2023,PE146985,189.00,MP-2-TX Printed Plate (240mm x 176mm) - Private Hire Rear,Materials and Consumables
People and Places,Environmental Services,Newauto Limited T/A Mogo,01/02/2023,PE146985,98.00,CP-STX Clear Plate (240mm X 125mm),Materials and Consumables
People and Places,Environmental Services,Newauto Limited T/A Mogo,01/02/2023,PE146985,98.00,CP-TX Clear Plate (240mm X 176mm),Materials and Consumables
People and Places,Environmental Services,Newauto Limited T/A Mogo,01/02/2023,PE146985,19.90,Postage,Materials and Consumables
People and Places,Environmental Services,Newauto Limited T/A Mogo,01/02/2023,PE146985,95.60,MDSV-2 MOGO DOOR SIGN - VINYL NO DSC - Private Hire,Materials and Consumables
Resources,Support Services,North West Employers,01/02/2023,RS146971,5000.00,Aspiring Leaders Training,Technical Training
People and Places,Parking Services,NSL Services Group,07/02/2023,PE147160,4092.66,Car Park Enforcement Jan 23,Private Contractors
People and Places,Environmental Services,NWIFCA      N W Inshore Fisheries and Conservation,27/02/2023,PE147238,660.00,For shellfish testing - April 2022 - March 2023,Food and Drug Etc Samples
Resources,Support Services,Park Avenue Recruitment Ltd,20/02/2023,RS147492,2000.00,Appointment of an interim Estates Surveyor,Agency Staff
Resources,Support Services,Park Avenue Recruitment Ltd,20/02/2023,RS147491,2048.40,Appointment of an interim Estates Surveyor,Agency Staff
Resources,Support Services,Park Avenue Recruitment Ltd,20/02/2023,RS147490,2102.45,Appointment of an interim Estates Surveyor,Agency Staff
Resources,Support Services,Park Avenue Recruitment Ltd,20/02/2023,RS147489,2040.20,Appointment of an interim Estates Surveyor,Agency Staff
Resources,Support Services,Park Avenue Recruitment Ltd,22/02/2023,RS147537,2174.30,Appointment of an interim Estates Surveyor,Agency Staff
Resources,Support Services,Park Avenue Recruitment Ltd,20/02/2023,RS147488,675.00,Appointment of an interim Estates Surveyor,Agency Staff
Resources,Support Services,Park Avenue Recruitment Ltd,20/02/2023,RS147494,1830.40,Appointment of an interim Estates Surveyor,Agency Staff
Resources,Support Services,Park Avenue Recruitment Ltd,20/02/2023,RS147493,1485.35,Appointment of an interim Estates Surveyor,Agency Staff
People and Places,Cultural and Related Services,PARTICIPANT UK LTD,02/02/2023,PE147023,965.00,Fees paid on bookings made on the holiday activity and food programme - Christmas 2021 - Christmas 2022,Project Costs
People and Places,Cultural and Related Services,PARTICIPANT UK LTD,02/02/2023,PE147022,1200.00,"Holiday activity and food booking system for Wyre Council - annual fee - 1,200",Project Costs
Resources,Support Services,People Asset Management LTD,09/02/2023,RS147086,497.18,Monthly fee (Aug to March 22,Occupational Health Fees
Resources,Support Services,People Asset Management LTD,09/02/2023,RS147086,41.90,Monthly fee (Aug to March 22,Occupational Health Fees
Resources,Support Services,Phoenix Software LTD,23/02/2023,RS147548,6000.00,Azure AVD Set up,Consultants Fees
People and Places,Parking Services,Pipescan LTD,03/02/2023,PE147062,1000.00,"Carry out cleaning of car park drainage gullies, as per list supplied by Maria Leeder",Gully Emptying
People and Places,Parking Services,Pipescan LTD,03/02/2023,PE147062,1500.00,"Carry out cleaning of car park drainage gullies, as per list supplied by Maria Leeder",Gully Emptying
People and Places,Planning and Development Servs,Pipescan LTD,20/02/2023,PE147231,300.00,"26/02 Rectify blocked gulley to open air market place - situatied towards RH corner of market place - currently has fencing around it, also inspect and check the rwp gulley and other surface water gulley to this area and ensure running freely",Responsive Building Maintenance
People and Places,Cultural and Related Services,Pipescan LTD,23/02/2023,PE147524,240.00,Drainage investigation works carried out at Fleetwood Leisure Centre,Responsive Building Maintenance
People and Places,Cultural and Related Services,Pipescan LTD,23/02/2023,PE147361,300.00,"Inspection/jetting of drain between YMCA basement and sewage chamber, YMCA currently unable to carry out backwash without water ingress to the basement.  It appears there is a blockage along this line",Responsive Building Maintenance
People and Places,Planning and Development Servs,Pipescan LTD,20/02/2023,PE147307,1634.00,attendance to clean all site gullies and catch pits and jet out the main foul water sewers on site to a point into the main sewer off site.  To remove and dispose of oil interceptor waste. To remove and dispose silt waste,Planned Building Maintenance
Resources,Current Assets,Pitney Bowes LTD  Postage By Phone,08/02/2023,RS147169,1000.59,"Metr reset, replenish prepay balance",Stores Purchases
People and Places,Cultural and Related Services,Play Inclusion Project,10/02/2023,PE147292,1527.00,Equipment needed to deliver the HAF programme in Wyre,Project Costs
People and Places,Environmental Services,Poulton Pets LTD,20/02/2023,PE147473,1531.50,Provision of stray dog kennelling service 2022/23,Impounded Dogs Costs
Resources,Cultural and Related Services,Preston City Council,15/02/2023,RS147348,120.51,Festive trail markers  10x 450x450mm full colour 1pp printed digital  and mounted on 6mm correx 4 holes to top and bottom on each panel,Advertising - General
Resources,Support Services,Preston City Council,15/02/2023,RS147348,78.58,Older Persons Festive Fayre printing 20 x A4 1pp (4) 1000 x A5 1pp (45) 1 x bus stop six sheet poster (29.58),Public Relations
Resources,Cultural and Related Services,Preston City Council,15/02/2023,RS147348,131.90,"Holiday Activity Club (HAF) Vouchers - Winter 2022 A4 1pp x 1242 copies, each A4 individually numbered with a unique code Supplied flat A4, collated in order of PDF Delivery to Civic Centre, FAO Carol Southern",Promotions - General
Resources,Cultural and Related Services,Preston City Council,15/02/2023,RS147348,103.66,Garstang Library - Tourist Info Point - Pull up banners x 2 kinds FAO EMMA LYONS,Promotions - General
Resources,Cultural and Related Services,Preston City Council,15/02/2023,RS147348,40.71,2 x A1 Lancashire Tourism Award boards for The Mount Pavilion,Advertising - General
Resources,Corporate and Democratic Core,Preston City Council,15/02/2023,RS147348,127.00,300  Mayoral Christmas Cards  A5 4pp printed digitally 4 colour and 2pp clear toner on Silk 350gsm Carbon Neutral* Scored and supplied flat,Mayoral Hospitality
Resources,"Cultural, Environ and Planning",Relax and Re-mind Ltd,06/02/2023,RS147077,19195.20,"Fleetwood HSHAZ Grant: 45 - 47 Lord St, Fleetwood",Grants and Advances
Resources,Housing General Fund,RHEA PROJECTS LTD,06/02/2023,RS147079,10990.00,"Payment of invoice, RP - 1698 Affordable warmth support at 22 Hodder Avenue, 27 West Drive, 61 Arundel Drive, 2 Garden Close and 15 Bardsway",Affordable Warmth 2017/18
Finance,Central Services to the Public,SANTANDER,08/02/2023,WPST00095496,690.78,SAN UK ACC RECEIVEFRC004023048  3033,Plastic Cards Processing Fees
Resources,Non Service Related Exp,Scarab Sweepers Ltd,07/02/2023,RS146978,66028.88,"To Supply One New Sub Compact Sweeper Model MC110 Purchase Price 66,028.88 + vat    Reference TPPL Wyre Council HCC Lot 3 ? 1 x Sub-Compact Sweeper (14348)",Vehicles
Resources,Non Service Related Exp,Scarab Sweepers Ltd,07/02/2023,RS146978,80.00,Plus First Registration and RFL 300.00 No vat,Vehicles
Resources,Non Service Related Exp,Scarab Sweepers Ltd,07/02/2023,RS146978,220.00,Road Fund Licence,Vehicles
People and Places,Cultural and Related Services,Schneider Electric LTD,20/02/2023,PE146980,1035.96,Marine Hall UK DE FQ Parts & Labour,Responsive Building Maintenance
People and Places,Parking Services,SHARD SURFACING LTD,08/02/2023,PE147177,684.40,Labour charges for patching works to the entrance road of YMCA Poulton,"Paths, Roads and Car Park Mtnce Annual"
People and Places,Parking Services,SHARD SURFACING LTD,08/02/2023,PE147177,1026.60,Material charges for patching works to the entrance road of YMCA Poulton,"Paths, Roads and Car Park Mtnce Annual"
Resources,Current Assets,SME HCI Ltd,02/02/2023,RS147015,4656.10,Invoice Number: 143274,Miscellaneous Debits
Resources,Current Assets,SME HCI Ltd,17/02/2023,RS147468,2243.20,INVOICE NUMBER: 143742,Miscellaneous Debits
People and Places,Parking Services,Smiths Equipment Hire,16/02/2023,PE147020,140.20,Hire of Floorsaw 23/1/23 - 25/1/23 @ 110 Blade hire @ 2.45 Petrol @ 5.25 Charge @ 22.50,"Paths, Roads and Car Park Mtnce Annual"
People and Places,Parking Services,Smiths Equipment Hire,16/02/2023,PE147363,159.20,Hire of Floorsaw 6/2/23 to 9/2/23 @ 110 Blade hire @ 2.45 Petrol @ 1.75 Blade wear charge @ 45,"Paths, Roads and Car Park Mtnce Annual"
People and Places,Environmental Services,Smiths Equipment Hire,16/02/2023,PE147362,426.00,Hire of Access Platform Artic Boom 6/2/23 - 8/2/23 @ 256.00 Delivery @ 85 Collection @ 85,Responsive Building Maintenance
Resources,Housing General Fund,St Gobain Building Distribution LTD,06/02/2023,RS147081,185.00,Payment of invoice 0963/00118414,Materials and Consumables
Resources,Housing General Fund,St Gobain Building Distribution LTD,14/02/2023,RS147322,33.32,Invoice 154241,Materials and Consumables
Resources,Housing General Fund,St Gobain Building Distribution LTD,14/02/2023,RS147321,82.45,Invoice 154160,Materials and Consumables
People and Places,Support Services,St Gobain Building Distribution LTD,08/02/2023,PE147165,16.68,Repair estimate charge,Maintenance of Tools or Equipment
People and Places,Housing General Fund,St Gobain Building Distribution LTD,27/02/2023,PE147481,205.41,"Stock, invoice 757327",Materials and Consumables
People and Places,Housing General Fund,St Gobain Building Distribution LTD,09/02/2023,PE146982,132.95,Invoice - 0963 - 00118408,Materials and Consumables
People and Places,Current Assets,Standard Fuel Oils,10/02/2023,PE146945,45242.39,"CONFIRMATION ORDER FOR 35107 LITRES OF DIESEL @ 1.2887 PPL 26/1/23 DELIVERY TO WYRE COUNCIL, COPSE ROAD DEPOT, FLEETWOOD, FY7 6RP",Stock - Copse Road Fuel
People and Places,Planning and Development Servs,STANTEC UK LTD,27/02/2023,PE147594,39251.28,Project: Cleveleys Transport Study (UKSPF: E1: Improvements to town centres & high streets)Consultancy Services: Business case development; Regeneration and economic development services.,Project Costs
People and Places,Environmental Services,Stuart Taylor International Ltd,24/02/2023,PE147585,1267.74,Parts,Fuel
People and Places,Planning and Development Servs,Suez Recycling And Recovery UK LTD,06/02/2023,PE147078,1045.63,waste removal market suez Jan 23,Refuse Collection
People and Places,"Cultural, Environ and Planning",Susannah Bleakley Consulting,20/02/2023,PE147470,6528.52,ECO-CoBS Project,Consultants Fees (New CCR)
People and Places,Environmental Services,The Columbaria Company,27/02/2023,PE147474,63000.00,"5 x  12,600   Honeycomb Panorama Columbaria Units Delivery to Fleetwood Cemetery",Special Works
People and Places,Environmental Services,The Columbaria Company,27/02/2023,PE147474,800.00,delivery of items on PEO0023805 to Fleetwood Cemetery,Special Works
People and Places,Environmental Services,The Columbaria Company,27/02/2023,PE147474,950.00,remaining balance of invoice B12266 . for 5 panoramas from Columbaria,Special Works
People and Places,Environmental Services,The Columbaria Company,06/02/2023,PE147039,71.00,REDACT,Plaque Inscriptions and Furniture
Resources,Corporate and Democratic Core,The New Penny Grill,06/02/2023,RS147071,-2053.75,Recoding of invoice RS141455 replaced by RS147072,Special Events
People and Places,Support Services,The Pitchmark Group Ltd,23/02/2023,PE147539,1685.50,as per quote QTE-8181 02/02/2330 (BLUCON/010) Elements Blue/Red/Yellow Concentrate Paint -Blue - 10L10 (REDCON/010) Elements Blue/Red/Yellow Concentrate Paint -Red - 10L10 (52460125) Greenmaster Pro-Lite Double K CalMag 7-0-14+8CaO +4MgO +3Fe 1,Materials and Consumables
People and Places,"Cultural, Environ and Planning",The Royal Venue,20/02/2023,PE147500,7500.00,"FAO Jakki Slack The Venue  North Promenade Thornton Cleveleys Lancashire FY5 1LW   Car park mitigation measures at an agreed price of 15,000 per annum paid in 6 monthly instalments until completion of the Wyre Beach Management Scheme.   Cost 15,000 per",Consultants Fees (New CCR)
Resources,Support Services,Thomson Reuters,06/02/2023,RS147073,-15077.64,recode invoice RS146868,Purchase of Publications
People and Places,Cultural and Related Services,Tina Dempsey,23/02/2023,PE147542,2400.00,"The Science Residency (1/11/2022 to 31/10/2023):Residency Total:  9600 (2,400 per quarter)",Special Events
People and Places,Cultural and Related Services,Tina Dempsey,23/02/2023,PE147542,1250.00,"Materials/Resources Total: 5000 costs (1,250 per quarter)",Special Events
People and Places,Cultural and Related Services,Tina Dempsey,23/02/2023,PE147542,600.00,Science and Discovery Club Total:  2400 for 24 workshops/activities (600 per quarter),Special Events
People and Places,Cultural and Related Services,Tony Denton Promotions Ltd,01/02/2023,PE147004,2000.00,Deposit for show at Marine Hall - The Three Degrees - 22/9/23,Artistes' Fees
People and Places,Environmental Services,UK Container Maintenance LTD,23/02/2023,PE147549,2016.00,"Collection and Refurbishment of 12x 1280ltr containers in Burgundy (RAL 3005) with New Black trade lids, Standard locks, Keys, New castors and logos (copy attached ? please disregard the colour of the bin) - 168.00 each","Provision of Bins, Boxes and Sacks"
People and Places,Environmental Services,UK Container Maintenance LTD,23/02/2023,PE147549,545.00,Transport - 545,"Provision of Bins, Boxes and Sacks"
People and Places,Environmental Services,UK Container Maintenance LTD,23/02/2023,PE147549,126.00,"New Floors (only if required & Optional) - 126.00 eachDate, times and collection to be confirmed with Phil Gooden Tel 07791 273 146, the driver will need to contact Phil before he arrivesCollection address:-Wyre Council Chatsworth Depot C","Provision of Bins, Boxes and Sacks"
Resources,"Cultural, Environ and Planning",Vivid Resourcing Ltd,08/02/2023,RS147035,8261.10,Fleetwood Market Project  - Steve Solsby time,Consultants Fees (New CCR)
Resources,"Cultural, Environ and Planning",Vivid Resourcing Ltd,08/02/2023,RS147035,858.90,Fleetwood Market Project - Steve Solsby time,Consultants Fees (New CCR)
People and Places,Cultural and Related Services,VODAFONE LIMITED,22/02/2023,PE147345,24.00,Monthly Phone Charges,Mobile Devices
People and Places,Cultural and Related Services,VODAFONE LIMITED,24/02/2023,PE147545,24.00,01/01/23 to 31/01/23 Phone Charges,Mobile Devices
People and Places,Support Services,VODAFONE LIMITED,03/02/2023,PE146039,16.00,Monthly Charges,Mobile Devices
People and Places,Support Services,VODAFONE LIMITED,22/02/2023,PE147345,12.00,Monthly Phone Charges,Mobile Devices
People and Places,Support Services,VODAFONE LIMITED,24/02/2023,PE147545,12.00,01/01/23 to 31/01/23 Phone Charges,Mobile Devices
People and Places,Support Services,VODAFONE LIMITED,24/02/2023,PE147545,12.00,01/01/23 to 31/01/23 Phone Charges,Mobile Devices
People and Places,Support Services,VODAFONE LIMITED,03/02/2023,PE146039,12.00,Monthly Charges,Mobile Devices
People and Places,Support Services,VODAFONE LIMITED,22/02/2023,PE147345,50.70,Monthly Phone Charges,Mobile Devices
People and Places,Support Services,VODAFONE LIMITED,24/02/2023,PE147545,12.00,01/01/23 to 31/01/23 Phone Charges,Mobile Devices
People and Places,Support Services,VODAFONE LIMITED,03/02/2023,PE146039,12.00,Monthly Charges,Mobile Devices
People and Places,Support Services,VODAFONE LIMITED,22/02/2023,PE147345,12.00,Monthly Phone Charges,Mobile Devices
People and Places,Environmental Services,VODAFONE LIMITED,24/02/2023,PE147545,80.00,01/01/23 to 31/01/23 Phone Charges,Mobile Devices
People and Places,Environmental Services,VODAFONE LIMITED,03/02/2023,PE146039,80.00,Monthly Charges,Mobile Devices
People and Places,Environmental Services,VODAFONE LIMITED,22/02/2023,PE147345,88.51,Monthly Phone Charges,Mobile Devices
People and Places,Cultural and Related Services,VODAFONE LIMITED,03/02/2023,PE146039,24.00,Monthly Charges,Corporate and Professional Subscriptions
People and Places,Environmental Services,VODAFONE LIMITED,22/02/2023,PE147345,29.00,Monthly Phone Charges,Mobile Devices
People and Places,Environmental Services,VODAFONE LIMITED,03/02/2023,PE146039,29.00,Monthly Charges,Mobile Devices
People and Places,Environmental Services,VODAFONE LIMITED,24/02/2023,PE147545,29.00,01/01/23 to 31/01/23 Phone Charges,Mobile Devices
People and Places,Housing General Fund,VODAFONE LIMITED,24/02/2023,PE147545,72.00,01/01/23 to 31/01/23 Phone Charges,Mobile Devices
People and Places,Housing General Fund,VODAFONE LIMITED,03/02/2023,PE146039,70.45,Monthly Charges,Mobile Devices
People and Places,Housing General Fund,VODAFONE LIMITED,22/02/2023,PE147345,72.01,Monthly Phone Charges,Mobile Devices
People and Places,Housing General Fund,VODAFONE LIMITED,22/02/2023,PE147345,8.00,Monthly Phone Charges,Mobile Devices
People and Places,Housing General Fund,VODAFONE LIMITED,03/02/2023,PE146039,4.00,Monthly Charges,Mobile Devices
People and Places,Housing General Fund,VODAFONE LIMITED,24/02/2023,PE147545,8.00,01/01/23 to 31/01/23 Phone Charges,Mobile Devices
People and Places,Support Services,VODAFONE LIMITED,24/02/2023,PE147545,36.00,01/01/23 to 31/01/23 Phone Charges,Mobile Devices
People and Places,Support Services,VODAFONE LIMITED,03/02/2023,PE146039,36.00,Monthly Charges,Mobile Devices
People and Places,Support Services,VODAFONE LIMITED,22/02/2023,PE147345,36.00,Monthly Phone Charges,Mobile Devices
People and Places,Support Services,VODAFONE LIMITED,22/02/2023,PE147345,366.77,Monthly Phone Charges,Mobile Devices
People and Places,Support Services,VODAFONE LIMITED,03/02/2023,PE146039,205.00,Monthly Charges,Mobile Devices
People and Places,Support Services,VODAFONE LIMITED,24/02/2023,PE147545,205.00,01/01/23 to 31/01/23 Phone Charges,Mobile Devices
People and Places,Support Services,VODAFONE LIMITED,24/02/2023,PE147545,36.00,01/01/23 to 31/01/23 Phone Charges,Mobile Devices
People and Places,Support Services,VODAFONE LIMITED,03/02/2023,PE146039,36.00,Monthly Charges,Mobile Devices
People and Places,Support Services,VODAFONE LIMITED,22/02/2023,PE147345,36.00,Monthly Phone Charges,Mobile Devices
People and Places,Support Services,VODAFONE LIMITED,22/02/2023,PE147345,45.00,Monthly Phone Charges,Mobile Devices
People and Places,Support Services,VODAFONE LIMITED,03/02/2023,PE146039,45.00,Monthly Charges,Mobile Devices
People and Places,Support Services,VODAFONE LIMITED,24/02/2023,PE147545,45.00,01/01/23 to 31/01/23 Phone Charges,Mobile Devices
People and Places,Support Services,VODAFONE LIMITED,24/02/2023,PE147545,24.00,01/01/23 to 31/01/23 Phone Charges,Mobile Devices
People and Places,Support Services,VODAFONE LIMITED,03/02/2023,PE146039,26.13,Monthly Charges,Mobile Devices
People and Places,Support Services,VODAFONE LIMITED,22/02/2023,PE147345,24.00,Monthly Phone Charges,Mobile Devices
People and Places,Support Services,VODAFONE LIMITED,22/02/2023,PE147345,72.00,Monthly Phone Charges,Mobile Devices
People and Places,Support Services,VODAFONE LIMITED,03/02/2023,PE146039,72.66,Monthly Charges,Mobile Devices
People and Places,Support Services,VODAFONE LIMITED,24/02/2023,PE147545,72.00,01/01/23 to 31/01/23 Phone Charges,Mobile Devices
People and Places,Central Services to the Public,VODAFONE LIMITED,24/02/2023,PE147545,12.00,01/01/23 to 31/01/23 Phone Charges,Mobile Devices
People and Places,Central Services to the Public,VODAFONE LIMITED,03/02/2023,PE146039,12.00,Monthly Charges,Mobile Devices
People and Places,Central Services to the Public,VODAFONE LIMITED,22/02/2023,PE147345,12.00,Monthly Phone Charges,Mobile Devices
People and Places,Cultural and Related Services,VODAFONE LIMITED,24/02/2023,PE147545,12.00,01/01/23 to 31/01/23 Phone Charges,Mobile Devices
People and Places,Cultural and Related Services,VODAFONE LIMITED,03/02/2023,PE146039,12.00,Monthly Charges,Mobile Devices
People and Places,Cultural and Related Services,VODAFONE LIMITED,22/02/2023,PE147345,12.00,Monthly Phone Charges,Mobile Devices
People and Places,Cultural and Related Services,VODAFONE LIMITED,22/02/2023,PE147345,12.00,Monthly Phone Charges,Telephone - Buildings and Offices
People and Places,Cultural and Related Services,VODAFONE LIMITED,24/02/2023,PE147545,12.00,01/01/23 to 31/01/23 Phone Charges,Telephone - Buildings and Offices
People and Places,Cultural and Related Services,VODAFONE LIMITED,03/02/2023,PE146039,21.20,Monthly Charges,Telephone - Buildings and Offices
People and Places,Corporate and Democratic Core,VODAFONE LIMITED,24/02/2023,PE147545,12.00,01/01/23 to 31/01/23 Phone Charges,Mobile Devices
People and Places,Corporate and Democratic Core,VODAFONE LIMITED,03/02/2023,PE146039,12.00,Monthly Charges,Mobile Devices
People and Places,Corporate and Democratic Core,VODAFONE LIMITED,22/02/2023,PE147345,12.00,Monthly Phone Charges,Mobile Devices
People and Places,Cultural and Related Services,VODAFONE LIMITED,24/02/2023,PE147545,12.00,01/01/23 to 31/01/23 Phone Charges,Purchase of Tools or Equipment
People and Places,Cultural and Related Services,VODAFONE LIMITED,22/02/2023,PE147345,12.00,Monthly Phone Charges,Purchase of Tools or Equipment
People and Places,Cultural and Related Services,VODAFONE LIMITED,03/02/2023,PE146039,21.20,Monthly Charges,Purchase of Tools or Equipment
People and Places,Housing General Fund,VODAFONE LIMITED,22/02/2023,PE147345,24.00,Monthly Phone Charges,Purchase of Tools or Equipment
People and Places,Housing General Fund,VODAFONE LIMITED,24/02/2023,PE147545,24.00,01/01/23 to 31/01/23 Phone Charges,Purchase of Tools or Equipment
People and Places,Housing General Fund,VODAFONE LIMITED,03/02/2023,PE146039,24.00,Monthly Charges,Purchase of Tools or Equipment
People and Places,Central Services to the Public,VODAFONE LIMITED,24/02/2023,PE147545,12.00,01/01/23 to 31/01/23 Phone Charges,Mobile Devices
People and Places,Central Services to the Public,VODAFONE LIMITED,03/02/2023,PE146039,12.00,Monthly Charges,Mobile Devices
People and Places,Central Services to the Public,VODAFONE LIMITED,22/02/2023,PE147345,12.00,Monthly Phone Charges,Mobile Devices
People and Places,Cultural and Related Services,VODAFONE LIMITED,22/02/2023,PE147345,12.00,Monthly Phone Charges,Mobile Devices
People and Places,Cultural and Related Services,VODAFONE LIMITED,24/02/2023,PE147545,12.00,01/01/23 to 31/01/23 Phone Charges,Mobile Devices
People and Places,Cultural and Related Services,VODAFONE LIMITED,03/02/2023,PE146039,12.00,Monthly Charges,Mobile Devices
People and Places,Support Services,VODAFONE LIMITED,03/02/2023,PE146039,196.00,Monthly Charges,Mobile Devices
People and Places,Support Services,VODAFONE LIMITED,03/02/2023,PE146039,12.00,Monthly Charges,Mobile Devices
People and Places,Support Services,VODAFONE LIMITED,24/02/2023,PE147545,208.00,01/01/23 to 31/01/23 Phone Charges,Mobile Devices
People and Places,"Cultural, Environ and Planning",VODAFONE LIMITED,22/02/2023,PE147345,24.00,Monthly Phone Charges,Contract (New CCR)
People and Places,"Cultural, Environ and Planning",VODAFONE LIMITED,24/02/2023,PE147545,24.00,01/01/23 to 31/01/23 Phone Charges,Contract (New CCR)
People and Places,"Cultural, Environ and Planning",VODAFONE LIMITED,03/02/2023,PE146039,12.00,Monthly Charges,Contract (New CCR)
People and Places,"Cultural, Environ and Planning",VODAFONE LIMITED,03/02/2023,PE146039,12.00,Monthly Charges,Contract (New CCR)
People and Places,Support Services,VODAFONE LIMITED,24/02/2023,PE147545,56.00,01/01/23 to 31/01/23 Phone Charges,Mobile Devices
People and Places,Support Services,VODAFONE LIMITED,03/02/2023,PE146039,56.57,Monthly Charges,Mobile Devices
People and Places,Support Services,VODAFONE LIMITED,22/02/2023,PE147345,56.00,Monthly Phone Charges,Mobile Devices
People and Places,Support Services,VODAFONE LIMITED,22/02/2023,PE147345,311.22,Monthly Phone Charges,Mobile Devices
People and Places,Support Services,VODAFONE LIMITED,22/02/2023,PE147345,190.79,Monthly Phone Charges,Mobile Devices
People and Places,Support Services,VODAFONE LIMITED,24/02/2023,PE147545,108.98,01/01/23 to 31/01/23 Phone Charges,Mobile Devices
People and Places,Support Services,VODAFONE LIMITED,03/02/2023,PE146039,130.15,Monthly Charges,Mobile Devices
People and Places,Support Services,VODAFONE LIMITED,03/02/2023,PE146039,52.00,Monthly Charges,Mobile Devices
People and Places,Support Services,VODAFONE LIMITED,24/02/2023,PE147545,52.00,01/01/23 to 31/01/23 Phone Charges,Mobile Devices
People and Places,Support Services,VODAFONE LIMITED,22/02/2023,PE147345,98.03,Monthly Phone Charges,Mobile Devices
People and Places,Support Services,VODAFONE LIMITED,22/02/2023,PE147345,20.00,Monthly Phone Charges,Mobile Devices
People and Places,Support Services,VODAFONE LIMITED,24/02/2023,PE147545,20.00,01/01/23 to 31/01/23 Phone Charges,Mobile Devices
People and Places,Support Services,VODAFONE LIMITED,03/02/2023,PE146039,20.00,Monthly Charges,Mobile Devices
People and Places,Support Services,VODAFONE LIMITED,03/02/2023,PE146039,144.00,Monthly Charges,Mobile Devices
People and Places,Support Services,VODAFONE LIMITED,24/02/2023,PE147545,168.00,01/01/23 to 31/01/23 Phone Charges,Mobile Devices
People and Places,Support Services,VODAFONE LIMITED,22/02/2023,PE147345,156.04,Monthly Phone Charges,Mobile Devices
People and Places,Support Services,VODAFONE LIMITED,22/02/2023,PE147345,56.15,Monthly Phone Charges,Mobile Devices
People and Places,Support Services,VODAFONE LIMITED,24/02/2023,PE147545,56.00,01/01/23 to 31/01/23 Phone Charges,Mobile Devices
People and Places,Support Services,VODAFONE LIMITED,03/02/2023,PE146039,56.00,Monthly Charges,Mobile Devices
People and Places,Support Services,VODAFONE LIMITED,03/02/2023,PE146039,24.00,Monthly Charges,Mobile Devices
People and Places,Support Services,VODAFONE LIMITED,24/02/2023,PE147545,24.00,01/01/23 to 31/01/23 Phone Charges,Mobile Devices
People and Places,Support Services,VODAFONE LIMITED,22/02/2023,PE147345,24.00,Monthly Phone Charges,Mobile Devices
People and Places,Support Services,VODAFONE LIMITED,24/02/2023,PE147545,192.66,01/01/23 to 31/01/23 Phone Charges,Mobile Devices
People and Places,Support Services,VODAFONE LIMITED,22/02/2023,PE147345,192.00,Monthly Phone Charges,Mobile Devices
People and Places,Support Services,VODAFONE LIMITED,03/02/2023,PE146039,180.00,Monthly Charges,Mobile Devices
People and Places,Support Services,VODAFONE LIMITED,03/02/2023,PE146039,12.00,Monthly Charges,Mobile Devices
People and Places,Support Services,VODAFONE LIMITED,24/02/2023,PE147545,12.00,01/01/23 to 31/01/23 Phone Charges,Mobile Devices
People and Places,Support Services,VODAFONE LIMITED,22/02/2023,PE147345,12.00,Monthly Phone Charges,Mobile Devices
People and Places,Support Services,VODAFONE LIMITED,03/02/2023,PE146039,12.00,Monthly Charges,Mobile Devices
People and Places,Support Services,VODAFONE LIMITED,22/02/2023,PE147345,208.00,Monthly Phone Charges,Mobile Devices
Resources,Support Services,Vodafone LTD,09/02/2023,RS146538,404.49,MSP Dedicated Access Bearer 01/10/22 - 3,Internet and Telephone Charges
Resources,Support Services,Vodafone LTD,09/02/2023,RS146538,199.98,PSN - Direct Network Service Provider,Internet and Telephone Charges
People and Places,Cultural and Related Services,We Design Maps,14/02/2023,PE147084,625.00,We Design maps,Advertising - General
Resources,Current Assets,Whistl Uk Limited,14/02/2023,RS147320,6.80,Annual postage charges 01/04/2022 - 31/03/2022,Stores Purchases
Resources,Current Assets,Whistl Uk Limited,07/02/2023,RS147156,1748.51,Annual postage charges 01/04/2022 - 31/03/2022,Stores Purchases
Resources,Current Assets,Whistl Uk Limited,07/02/2023,RS147156,24.20,Annual postage charges 01/04/2022 - 31/03/2022,Stores Purchases
Resources,Current Assets,Whistl Uk Limited,14/02/2023,RS147320,245.69,Annual postage charges 01/04/2022 - 31/03/2022,Stores Purchases
Resources,Current Assets,Whistl Uk Limited,22/02/2023,RS147514,369.33,Annual postage charges 01/04/2022 - 31/03/2022,Stores Purchases
Resources,Current Assets,Whistl Uk Limited,22/02/2023,RS147514,8.20,Annual postage charges 01/04/2022 - 31/03/2022,Stores Purchases
People and Places,Public Transport,Wyre Marine Services,08/02/2023,PE147226,17370.00,"Fleetwood - Knott End Ferry Service.Schedule of payments12 April 2022             - 11 May 2022                        �,8685.0012 May 2022             - 11 June 2022                       8,685.0012 June 2022            - 11 July 2022",Private Contractors
